{"text_format":"1","workbook":"xlsx","n_sheets":3,"sheets":["Impurities","Comp Test for Darker than Std","RX"],"not_rendered":{"charts":0,"images":1,"macros":1,"external_links":0,"defined_names":157,"comments":1,"pivot_tables":0},"unopened":[],"bounds":{"document_bytes":16777216,"sheet_cells":100000,"rows_first":2000,"rows_last":500,"rows_between":2000,"halvings":0,"cell_chars":16384,"cell_head_chars":4096},"cells_cut":0,"cells_raw":0,"read":"whole","date_system":"1900"}

{"sheet":"Impurities","index":0,"n_rows":49,"n_cols":11,"rows_kept":49,"cut":false,"hidden":false,"merged":[[24,5,24,7],[24,1,24,4],[12,7,12,8],[28,5,28,6],[14,3,14,8],[26,5,26,6],[13,3,13,4],[15,3,15,8],[13,7,13,8],[16,3,16,4],[16,7,16,8],[12,3,12,4],[35,1,36,8],[38,1,38,8],[37,1,37,8],[43,2,43,4],[49,1,49,3],[45,1,45,3],[45,6,45,8],[42,2,42,4],[40,2,40,4],[41,2,41,4],[0,0,0,1],[11,7,11,8],[11,3,11,4],[7,7,7,8],[10,7,10,8],[7,3,7,4],[8,3,8,4],[9,3,9,4],[8,7,8,8],[10,3,10,4],[9,7,9,8]]}
["TxDOT Manuals >",null,null,"Tex-408-A"]
[null,"TEXAS DEPARTMENT OF TRANSPORTATION",null,null,null,null,null,null,null,null,105]
[null,null,null,null,null,null,null,null,null,null,3]
[null,null,null,null,null,null,null,null,null,null,"tx408.xlsm::45503.67559"]
[null,"Organic Impurities in Fine Aggregate for Concrete"]
[null,"Tex-408-A"]
[null,null,null,null,null,null,null,null,{"$f":"\"File Version: \" & TEXT(MID(sn,SEARCH(\"::\",sn,1)+2,20),\"mm/dd/yy hh:mm:ss\")","v":"File Version: 07/30/24 16:12:51"}]
[null,null,"SAMPLE ID:",null,null,null,"SAMPLED DATE:"]
[null,null,"TEST NUMBER:",null,null,null,"LETTING DATE:"]
[null,null,"SAMPLE STATUS:",null,null,null,"CONTROLLING CSJ:"]
[null,null,"COUNTY:",null,null,null,"SPEC YEAR:"]
[null,null,"SAMPLED BY:",null,null,null,"SPEC ITEM:"]
[null,null,"SAMPLE LOCATION:",null,null,null,"SPECIAL PROVISION:"]
[null,null,"MATERIAL CODE:",null,null,null,"GRADE:"]
[null,null,"MATERIAL NAME:"]
[null,null,"PRODUCER:"]
[null,null,"AREA ENGINEER:",null,null,null,"PROJECT MANAGER:"]
[]
[null,null,"COURSE\\LIFT:",null,"STATION:",null,null,"DIST. FROM CL:"]
[]
[null,"Organic Impurities"]
[null,"Tex-408-A"]
[]
[]
[null,"COLOR OF THE SUPERNATANT LIQUID:"]
[]
[null,null,null,null,null,"Relative Strength:",null,{"$f":"IF($F$25<>\"DARKER THAN STANDARD\",\"\",'Comp Test for Darker than Std'!H71)","v":""}]
[]
[null,null,null,null,null,"Meets Specifications:",null,{"$f":"IF($F$25<>\"DARKER THAN STANDARD\",\"\",IF('Comp Test for Darker than Std'!$H$71>=95,\"Yes\",\"No\"))","v":""}]
[]
[]
[]
[]
[]
[null,"Remarks:",{"$f":"NOW()","v":"2024-07-30T16:12:51.530"}]
[]
[]
[]
[]
[]
[null,"Sample Method:","Sampled By:",null,null,"Sampled Date:"]
[null,"TX400"]
[null,"Test Method:","Tested By:",null,null,"Tested Date:"]
[null,"TX408"]
[null,"Test Stamp Code:",null,null,"Omit Test:","Completed Date:","Reviewed By:"]
[]
[null,"Locked By:","TxDOT:","District:","Area:"]
[]
[null,"Authorized By:",null,null,"Authorized Date:"]

{"sheet":"Comp Test for Darker than Std","index":1,"n_rows":77,"n_cols":9,"rows_kept":77,"cut":false,"hidden":false,"merged":[[7,3,7,4],[7,7,7,8],[9,7,9,8],[6,3,6,4],[8,3,8,4],[8,7,8,8],[6,7,6,8],[10,3,10,4],[9,3,9,4],[14,3,14,8],[11,3,11,4],[11,7,11,8],[10,7,10,8],[12,7,12,8],[12,3,12,4],[13,3,13,8],[47,6,47,7],[55,6,55,7],[27,3,28,3],[62,6,62,7],[73,1,74,8],[50,2,51,2],[50,3,51,3],[57,2,58,2],[50,1,51,1],[57,1,58,1],[42,1,43,1],[42,3,43,3],[76,2,76,4],[15,3,15,4],[27,2,28,2],[42,2,43,2],[20,2,21,2],[20,3,21,3],[35,2,36,2],[49,1,49,8],[56,1,56,8],[20,1,21,1],[15,7,15,8],[57,3,58,3],[40,6,40,7],[35,3,36,3],[25,6,25,7],[32,6,32,7],[19,1,19,8],[26,1,26,8],[34,1,34,8],[41,1,41,8],[27,1,28,1],[35,1,36,1]]}
[null,"TEXAS DEPARTMENT OF TRANSPORTATION"]
[null,{"$f":"IF(Location=\"\",\"\",Location)","v":""}]
[]
[null,"COMPRESSIVE STRENGTH FOR SAMPLE RATED DARKER THAN STANDARD"]
[null,"AASHTO T 71"]
[]
[null,null,"SAMPLE ID:",{"$f":"IF(SampleId=\"\",\"\",SampleId)","v":""},null,null,"SAMPLED DATE:",{"$f":"IF(SampledDate=\"\",\"\",SampledDate)","v":""}]
[null,null,"TEST NUMBER:",{"$f":"IF(TestNumber=\"\",\"\",TestNumber)","v":""},null,null,"LETTING DATE:",{"$f":"IF(LettingDate=\"\",\"\",LettingDate)","v":""}]
[null,null,"SAMPLE STATUS:",{"$f":"IF(Status=\"\",\"\",Status)","v":""},null,null,"CONTROLLING CSJ:",{"$f":"IF(CCSJ=\"\",\"\",CCSJ)","v":""}]
[null,null,"COUNTY:",{"$f":"IF(County=\"\",\"\",County)","v":""},null,null,"SPEC YEAR:",{"$f":"IF(SpecYear=\"\",\"\",SpecYear)","v":""}]
[null,null,"SAMPLED BY:",{"$f":"IF(SampledBy=\"\",\"\",SampledBy)","v":""},null,null,"SPEC ITEM:",{"$f":"IF(SpecItem=\"\",\"\",SpecItem)","v":""}]
[null,null,"SAMPLE LOCATION:",{"$f":"IF(sampleLocation=\"\",\"\",sampleLocation)","v":""},null,null,"SPECIAL PROVISION:",{"$f":"IF(SpecialProvision=\"\",\"\",SpecialProvision)","v":""}]
[null,null,"MATERIAL CODE:",{"$f":"IF(Material=\"\",\"\",Material)","v":""},null,null,"GRADE:",{"$f":"IF(Grade=\"\",\"\",Grade)","v":""}]
[null,null,"MATERIAL NAME:",{"$f":"IF(matl_nm=\"\",\"\",matl_nm)","v":""}]
[null,null,"PRODUCER:",{"$f":"IF(Producer=\"\",\"\",Producer)","v":""}]
[null,null,"AREA ENGINEER:",{"$f":"IF(AreaEngineer=\"\",\"\",AreaEngineer)","v":""},null,null,"PROJECT MANAGER:",{"$f":"IF(ProjectManager=\"\",\"\",ProjectManager)","v":""}]
[]
[null,null,"COURSE\\LIFT:",{"$f":"IF(CourseLift=\"\",\"\",CourseLift)","v":""},"STATION:",{"$f":"IF(Station=\"\",\"\",Station)","v":""},null,"DIST. FROM CL:",{"$f":"IF(DistFromCL=\"\",\"\",DistFromCL)","v":""}]
[]
[null,"BATCH 1 - Washed"]
[null,"Sample","Sample ID","Age","Length","Width","Area","Load","Compressive Strength"]
[null,null,null,null,{"$f":"IF(SpecYear=\"\",\"\",IF(SpecYear=\"1993\",\"(in)\",\"(mm)\"))","v":""},{"$f":"IF(SpecYear=\"\",\"\",IF(SpecYear=\"1993\",\"(in)\",\"(mm)\"))","v":""},{"$f":"IF(SpecYear=\"\",\"\",IF(SpecYear=\"1993\",\"(in²)\",\"(m²)\"))","v":""},{"$f":"IF(SpecYear=\"\",\"\",IF(SpecYear=\"1993\",\"(Lbs.)\",\"(N)\"))","v":""},{"$f":"IF(SpecYear=\"\",\"\",IF(SpecYear=\"1993\",\"(psi)\",\"(Pa)\"))","v":""}]
[null,1,null,null,null,null,{"$f":"IF(SpecYear=\"1993\",E23*F23,(E23/1000)*(F23/1000))","v":0},null,{"$f":"IF(ISERROR(ROUND($H23/$G23,0)),0,ROUND($H23/$G23,0))","v":0}]
[null,2,null,null,null,null,{"$f":"IF(SpecYear=\"1993\",E24*F24,(E24/1000)*(F24/1000))","v":0},null,{"$f":"IF(ISERROR(ROUND($H24/$G24,0)),0,ROUND($H24/$G24,0))","v":0}]
[null,3,null,null,null,null,{"$f":"IF(SpecYear=\"1993\",E25*F25,(E25/1000)*(F25/1000))","v":0},null,{"$f":"IF(ISERROR(ROUND($H25/$G25,0)),0,ROUND($H25/$G25,0))","v":0}]
[null,null,null,null,null,null,"Average Strength:",null,{"$f":"SUM(I23:I25)/3","v":0}]
[null,"BATCH 1 - Unwashed"]
[null,"Sample","Sample Number","Age","Length","Width","Area","Load","Compressive Strength"]
[null,null,null,null,{"$f":"IF(SpecYear=\"\",\"\",IF(SpecYear=\"1993\",\"(in)\",\"(mm)\"))","v":""},{"$f":"IF(SpecYear=\"\",\"\",IF(SpecYear=\"1993\",\"(in)\",\"(mm)\"))","v":""},{"$f":"IF(SpecYear=\"\",\"\",IF(SpecYear=\"1993\",\"(in²)\",\"(m²)\"))","v":""},{"$f":"IF(SpecYear=\"\",\"\",IF(SpecYear=\"1993\",\"(Lbs.)\",\"(N)\"))","v":""},{"$f":"IF(SpecYear=\"\",\"\",IF(SpecYear=\"1993\",\"(psi)\",\"(Pa)\"))","v":""}]
[null,1,null,null,null,null,{"$f":"IF(SpecYear=\"1993\",E30*F30,(E30/1000)*(F30/1000))","v":0},null,{"$f":"IF(ISERROR(ROUND($H30/$G30,0)),0,ROUND($H30/$G30,0))","v":0}]
[null,2,null,null,null,null,{"$f":"IF(SpecYear=\"1993\",E31*F31,(E31/1000)*(F31/1000))","v":0},null,{"$f":"IF(ISERROR(ROUND($H31/$G31,0)),0,ROUND($H31/$G31,0))","v":0}]
[null,3,null,null,null,null,{"$f":"IF(SpecYear=\"1993\",E32*F32,(E32/1000)*(F32/1000))","v":0},null,{"$f":"IF(ISERROR(ROUND($H32/$G32,0)),0,ROUND($H32/$G32,0))","v":0}]
[null,null,null,null,null,null,"Average Strength:",null,{"$f":"SUM(I30:I32)/3","v":0}]
[]
[null,"BATCH 2 - Washed"]
[null,"Sample","Sample Number","Age","Length","Width","Area","Load","Compressive Strength"]
[null,null,null,null,{"$f":"IF(SpecYear=\"\",\"\",IF(SpecYear=\"1993\",\"(in)\",\"(mm)\"))","v":""},{"$f":"IF(SpecYear=\"\",\"\",IF(SpecYear=\"1993\",\"(in)\",\"(mm)\"))","v":""},{"$f":"IF(SpecYear=\"\",\"\",IF(SpecYear=\"1993\",\"(in²)\",\"(m²)\"))","v":""},{"$f":"IF(SpecYear=\"\",\"\",IF(SpecYear=\"1993\",\"(Lbs.)\",\"(N)\"))","v":""},{"$f":"IF(SpecYear=\"\",\"\",IF(SpecYear=\"1993\",\"(psi)\",\"(Pa)\"))","v":""}]
[null,1,null,null,null,null,{"$f":"IF(SpecYear=\"1993\",E38*F38,(E38/1000)*(F38/1000))","v":0},null,{"$f":"IF(ISERROR(ROUND($H38/$G38,0)),0,ROUND($H38/$G38,0))","v":0}]
[null,2,null,null,null,null,{"$f":"IF(SpecYear=\"1993\",E39*F39,(E39/1000)*(F39/1000))","v":0},null,{"$f":"IF(ISERROR(ROUND($H39/$G39,0)),0,ROUND($H39/$G39,0))","v":0}]
[null,3,null,null,null,null,{"$f":"IF(SpecYear=\"1993\",E40*F40,(E40/1000)*(F40/1000))","v":0},null,{"$f":"IF(ISERROR(ROUND($H40/$G40,0)),0,ROUND($H40/$G40,0))","v":0}]
[null,null,null,null,null,null,"Average Strength:",null,{"$f":"SUM(I38:I40)/3","v":0}]
[null,"BATCH 2 - Unwashed"]
[null,"Sample","Sample Number","Age","Length","Width","Area","Load","Compressive Strength"]
[null,null,null,null,{"$f":"IF(SpecYear=\"\",\"\",IF(SpecYear=\"1993\",\"(in)\",\"(mm)\"))","v":""},{"$f":"IF(SpecYear=\"\",\"\",IF(SpecYear=\"1993\",\"(in)\",\"(mm)\"))","v":""},{"$f":"IF(SpecYear=\"\",\"\",IF(SpecYear=\"1993\",\"(in²)\",\"(m²)\"))","v":""},{"$f":"IF(SpecYear=\"\",\"\",IF(SpecYear=\"1993\",\"(Lbs.)\",\"(N)\"))","v":""},{"$f":"IF(SpecYear=\"\",\"\",IF(SpecYear=\"1993\",\"(psi)\",\"(Pa)\"))","v":""}]
[null,1,null,null,null,null,{"$f":"IF(SpecYear=\"1993\",E45*F45,(E45/1000)*(F45/1000))","v":0},null,{"$f":"IF(ISERROR(ROUND($H45/$G45,0)),0,ROUND($H45/$G45,0))","v":0}]
[null,2,null,null,null,null,{"$f":"IF(SpecYear=\"1993\",E46*F46,(E46/1000)*(F46/1000))","v":0},null,{"$f":"IF(ISERROR(ROUND($H46/$G46,0)),0,ROUND($H46/$G46,0))","v":0}]
[null,3,null,null,null,null,{"$f":"IF(SpecYear=\"1993\",E47*F47,(E47/1000)*(F47/1000))","v":0},null,{"$f":"IF(ISERROR(ROUND($H47/$G47,0)),0,ROUND($H47/$G47,0))","v":0}]
[null,null,null,null,null,null,"Average Strength:",null,{"$f":"SUM(I45:I47)/3","v":0}]
[]
[null,"BATCH 3 - Washed"]
[null,"Sample","Sample Number","Age","Length","Width","Area","Load","Compressive Strength"]
[null,null,null,null,{"$f":"IF(SpecYear=\"\",\"\",IF(SpecYear=\"1993\",\"(in)\",\"(mm)\"))","v":""},{"$f":"IF(SpecYear=\"\",\"\",IF(SpecYear=\"1993\",\"(in)\",\"(mm)\"))","v":""},{"$f":"IF(SpecYear=\"\",\"\",IF(SpecYear=\"1993\",\"(in²)\",\"(m²)\"))","v":""},{"$f":"IF(SpecYear=\"\",\"\",IF(SpecYear=\"1993\",\"(Lbs.)\",\"(N)\"))","v":""},{"$f":"IF(SpecYear=\"\",\"\",IF(SpecYear=\"1993\",\"(psi)\",\"(Pa)\"))","v":""}]
[null,1,null,null,null,null,{"$f":"IF(SpecYear=\"1993\",E53*F53,(E53/1000)*(F53/1000))","v":0},null,{"$f":"IF(ISERROR(ROUND($H53/$G53,0)),0,ROUND($H53/$G53,0))","v":0}]
[null,2,null,null,null,null,{"$f":"IF(SpecYear=\"1993\",E54*F54,(E54/1000)*(F54/1000))","v":0},null,{"$f":"IF(ISERROR(ROUND($H54/$G54,0)),0,ROUND($H54/$G54,0))","v":0}]
[null,3,null,null,null,null,{"$f":"IF(SpecYear=\"1993\",E55*F55,(E55/1000)*(F55/1000))","v":0},null,{"$f":"IF(ISERROR(ROUND($H55/$G55,0)),0,ROUND($H55/$G55,0))","v":0}]
[null,null,null,null,null,null,"Average Strength:",null,{"$f":"SUM(I53:I55)/3","v":0}]
[null,"BATCH 3 -  Unwashed"]
[null,"Sample","Sample Number","Age","Length","Width","Area","Load","Compressive Strength"]
[null,null,null,null,{"$f":"IF(SpecYear=\"\",\"\",IF(SpecYear=\"1993\",\"(in)\",\"(mm)\"))","v":""},{"$f":"IF(SpecYear=\"\",\"\",IF(SpecYear=\"1993\",\"(in)\",\"(mm)\"))","v":""},{"$f":"IF(SpecYear=\"\",\"\",IF(SpecYear=\"1993\",\"(in²)\",\"(m²)\"))","v":""},{"$f":"IF(SpecYear=\"\",\"\",IF(SpecYear=\"1993\",\"(Lbs.)\",\"(N)\"))","v":""},{"$f":"IF(SpecYear=\"\",\"\",IF(SpecYear=\"1993\",\"(psi)\",\"(Pa)\"))","v":""}]
[null,1,null,null,null,null,{"$f":"IF(SpecYear=\"1993\",E60*F60,(E60/1000)*(F60/1000))","v":0},null,{"$f":"IF(ISERROR(ROUND($H60/$G60,0)),0,ROUND($H60/$G60,0))","v":0}]
[null,2,null,null,null,null,{"$f":"IF(SpecYear=\"1993\",E61*F61,(E61/1000)*(F61/1000))","v":0},null,{"$f":"IF(ISERROR(ROUND($H61/$G61,0)),0,ROUND($H61/$G61,0))","v":0}]
[null,3,null,null,null,null,{"$f":"IF(SpecYear=\"1993\",E62*F62,(E62/1000)*(F62/1000))","v":0},null,{"$f":"IF(ISERROR(ROUND($H62/$G62,0)),0,ROUND($H62/$G62,0))","v":0}]
[null,null,null,null,null,null,"Average Strength:",null,{"$f":"SUM(I60:I62)/3","v":0}]
[]
[null,null,null,null,null,null,"Batch 1 - Ratio of unwashed strength to washed strength:",{"$f":"IF(ISERROR(I33/I26),0,I33/I26)","v":0}]
[]
[null,null,null,null,null,null,"Batch 2 - Ratio of unwashed strength to washed strength:",{"$f":"IF(ISERROR(I48/I41),0,I48/I41)","v":0}]
[]
[null,null,null,null,null,null,"Batch 3 - Ratio of unwashed strength to washed strength:",{"$f":"IF(ISERROR(I63/I56),0,I63/I56)","v":0}]
[]
[null,null,null,null,null,null,"Relative Strength (%)",{"$f":"AVERAGE(H65,H67,H69)*100","v":0}]
[]
[null,"Remarks:",{"$f":"NOW()","v":"2024-07-30T16:12:51.530"}]
[]
[]
[null,"Test Method:",null,"Tested By:",null,"Date:"]
[null,"AASHTOT71"]

{"sheet":"RX","index":2,"n_rows":150,"n_cols":9,"rows_kept":150,"cut":false,"hidden":true,"merged":[]}
[148]
["Fld_nbr","Value","Desc_1","Desc_2","Desc_3","Desc_4","Desc_5","Desc_6","Desc_7"]
[1,{"$f":"IF(Impurities!$B$36=\"\",\"\",Impurities!$B$36)","v":""},{"$f":"Impurities!$B$35","v":"Remarks:"}]
[2,{"$f":"IF(Impurities!$D$19=\"\",\"\",Impurities!$D$19)","v":""},{"$f":"IF(Impurities!$C$19=\"\",\"\",Impurities!$C$19)","v":"COURSE\\LIFT:"}]
[3,{"$f":"IF(Impurities!$C$44=\"\",\"\",Impurities!$C$44)","v":""},"Tested By ",{"$f":"IF(Impurities!$B$44=\"\",\"\",Impurities!$B$44)","v":"TX408"}]
[4,{"$f":"IF(Impurities!$F$44=\"\",\"\",Impurities!$F$44)","v":""},"Tested Date ",{"$f":"IF(Impurities!$B$44=\"\",\"\",Impurities!$B$44)","v":"TX408"}]
[5,{"$f":"IF('Comp Test for Darker than Std'!$C$77=\"\",\"\",'Comp Test for Darker than Std'!$C$77)","v":""},"Tested By ",{"$f":"IF('Comp Test for Darker than Std'!$B$77=\"\",\"\",'Comp Test for Darker than Std'!$B$77)","v":"AASHTOT71"}]
[6,{"$f":"IF('Comp Test for Darker than Std'!$F$77=\"\",\"\",'Comp Test for Darker than Std'!$F$77)","v":""},"Tested Date ",{"$f":"IF('Comp Test for Darker than Std'!$B$77=\"\",\"\",'Comp Test for Darker than Std'!$B$77)","v":"AASHTOT71"}]
[7,{"$f":"IF(Impurities!$F$25=\"\",\"\",Impurities!$F$25)","v":""},{"$f":"IF(Impurities!$B$6=\"\",\"\",Impurities!$B$6)","v":"Tex-408-A"},{"$f":"IF(Impurities!$B$25=\"\",\"\",Impurities!$B$25)","v":"COLOR OF THE SUPERNATANT LIQUID:"}]
[8,{"$f":"IF(Impurities!$H$27=\"\",\"\",Impurities!$H$27)","v":""},{"$f":"IF(Impurities!$B$6=\"\",\"\",Impurities!$B$6)","v":"Tex-408-A"},{"$f":"IF(Impurities!$F$27=\"\",\"\",Impurities!$F$27)","v":"Relative Strength:"}]
[9,{"$f":"IF(Impurities!$H$29=\"\",\"\",Impurities!$H$29)","v":""},{"$f":"IF(Impurities!$B$6=\"\",\"\",Impurities!$B$6)","v":"Tex-408-A"},{"$f":"IF(Impurities!$F$29=\"\",\"\",Impurities!$F$29)","v":"Meets Specifications:"}]
[10,{"$f":"IF('Comp Test for Darker than Std'!$C$23=\"\",\"\",'Comp Test for Darker than Std'!$C$23)","v":""},{"$f":"IF('Comp Test for Darker than Std'!$B$5=\"\",\"\",'Comp Test for Darker than Std'!$B$5)","v":"AASHTO T 71"},{"$f":"IF('Comp Test for Darker than Std'!$B$20=\"\",\"\",'Comp Test for Darker than Std'!$B$20)","v":"BATCH 1 - Washed"},{"$f":"IF('Comp Test for Darker than Std'!$C$21=\"\",\"\",'Comp Test for Darker than Std'!$C$21)","v":"Sample ID"},{"$f":"IF('Comp Test for Darker than Std'!$B$21=\"\",\"\",'Comp Test for Darker than Std'!$B$21)","v":"Sample"},{"$f":"IF('Comp Test for Darker than Std'!$B$23=\"\",\"\",'Comp Test for Darker than Std'!$B$23)","v":1}]
[11,{"$f":"IF('Comp Test for Darker than Std'!$D$23=\"\",\"\",'Comp Test for Darker than Std'!$D$23)","v":""},{"$f":"IF('Comp Test for Darker than Std'!$B$5=\"\",\"\",'Comp Test for Darker than Std'!$B$5)","v":"AASHTO T 71"},{"$f":"IF('Comp Test for Darker than Std'!$B$20=\"\",\"\",'Comp Test for Darker than Std'!$B$20)","v":"BATCH 1 - Washed"},{"$f":"IF('Comp Test for Darker than Std'!$D$21=\"\",\"\",'Comp Test for Darker than Std'!$D$21)","v":"Age"},{"$f":"IF('Comp Test for Darker than Std'!$B$21=\"\",\"\",'Comp Test for Darker than Std'!$B$21)","v":"Sample"},{"$f":"IF('Comp Test for Darker than Std'!$B$23=\"\",\"\",'Comp Test for Darker than Std'!$B$23)","v":1}]
[12,{"$f":"IF('Comp Test for Darker than Std'!$E$23=\"\",\"\",'Comp Test for Darker than Std'!$E$23)","v":""},{"$f":"IF('Comp Test for Darker than Std'!$B$5=\"\",\"\",'Comp Test for Darker than Std'!$B$5)","v":"AASHTO T 71"},{"$f":"IF('Comp Test for Darker than Std'!$B$20=\"\",\"\",'Comp Test for Darker than Std'!$B$20)","v":"BATCH 1 - Washed"},{"$f":"IF('Comp Test for Darker than Std'!$E$21=\"\",\"\",'Comp Test for Darker than Std'!$E$21)","v":"Length"},{"$f":"IF('Comp Test for Darker than Std'!$E$22=\"\",\"\",'Comp Test for Darker than Std'!$E$22)","v":""},{"$f":"IF('Comp Test for Darker than Std'!$B$21=\"\",\"\",'Comp Test for Darker than Std'!$B$21)","v":"Sample"},{"$f":"IF('Comp Test for Darker than Std'!$B$23=\"\",\"\",'Comp Test for Darker than Std'!$B$23)","v":1}]
[13,{"$f":"IF('Comp Test for Darker than Std'!$F$23=\"\",\"\",'Comp Test for Darker than Std'!$F$23)","v":""},{"$f":"IF('Comp Test for Darker than Std'!$B$5=\"\",\"\",'Comp Test for Darker than Std'!$B$5)","v":"AASHTO T 71"},{"$f":"IF('Comp Test for Darker than Std'!$B$20=\"\",\"\",'Comp Test for Darker than Std'!$B$20)","v":"BATCH 1 - Washed"},{"$f":"IF('Comp Test for Darker than Std'!$F$21=\"\",\"\",'Comp Test for Darker than Std'!$F$21)","v":"Width"},{"$f":"IF('Comp Test for Darker than Std'!$F$22=\"\",\"\",'Comp Test for Darker than Std'!$F$22)","v":""},{"$f":"IF('Comp Test for Darker than Std'!$B$21=\"\",\"\",'Comp Test for Darker than Std'!$B$21)","v":"Sample"},{"$f":"IF('Comp Test for Darker than Std'!$B$23=\"\",\"\",'Comp Test for Darker than Std'!$B$23)","v":1}]
[14,{"$f":"IF('Comp Test for Darker than Std'!$G$23=\"\",\"\",'Comp Test for Darker than Std'!$G$23)","v":0},{"$f":"IF('Comp Test for Darker than Std'!$B$5=\"\",\"\",'Comp Test for Darker than Std'!$B$5)","v":"AASHTO T 71"},{"$f":"IF('Comp Test for Darker than Std'!$B$20=\"\",\"\",'Comp Test for Darker than Std'!$B$20)","v":"BATCH 1 - Washed"},{"$f":"IF('Comp Test for Darker than Std'!$G$21=\"\",\"\",'Comp Test for Darker than Std'!$G$21)","v":"Area"},{"$f":"IF('Comp Test for Darker than Std'!$G$22=\"\",\"\",'Comp Test for Darker than Std'!$G$22)","v":""},{"$f":"IF('Comp Test for Darker than Std'!$B$21=\"\",\"\",'Comp Test for Darker than Std'!$B$21)","v":"Sample"},{"$f":"IF('Comp Test for Darker than Std'!$B$23=\"\",\"\",'Comp Test for Darker than Std'!$B$23)","v":1}]
[15,{"$f":"IF('Comp Test for Darker than Std'!$H$23=\"\",\"\",'Comp Test for Darker than Std'!$H$23)","v":""},{"$f":"IF('Comp Test for Darker than Std'!$B$5=\"\",\"\",'Comp Test for Darker than Std'!$B$5)","v":"AASHTO T 71"},{"$f":"IF('Comp Test for Darker than Std'!$B$20=\"\",\"\",'Comp Test for Darker than Std'!$B$20)","v":"BATCH 1 - Washed"},{"$f":"IF('Comp Test for Darker than Std'!$H$21=\"\",\"\",'Comp Test for Darker than Std'!$H$21)","v":"Load"},{"$f":"IF('Comp Test for Darker than Std'!$H$22=\"\",\"\",'Comp Test for Darker than Std'!$H$22)","v":""},{"$f":"IF('Comp Test for Darker than Std'!$B$21=\"\",\"\",'Comp Test for Darker than Std'!$B$21)","v":"Sample"},{"$f":"IF('Comp Test for Darker than Std'!$B$23=\"\",\"\",'Comp Test for Darker than Std'!$B$23)","v":1}]
[16,{"$f":"IF('Comp Test for Darker than Std'!$I$23=\"\",\"\",'Comp Test for Darker than Std'!$I$23)","v":0},{"$f":"IF('Comp Test for Darker than Std'!$B$5=\"\",\"\",'Comp Test for Darker than Std'!$B$5)","v":"AASHTO T 71"},{"$f":"IF('Comp Test for Darker than Std'!$B$20=\"\",\"\",'Comp Test for Darker than Std'!$B$20)","v":"BATCH 1 - Washed"},{"$f":"IF('Comp Test for Darker than Std'!$I$21=\"\",\"\",'Comp Test for Darker than Std'!$I$21)","v":"Compressive Strength"},{"$f":"IF('Comp Test for Darker than Std'!$I$22=\"\",\"\",'Comp Test for Darker than Std'!$I$22)","v":""},{"$f":"IF('Comp Test for Darker than Std'!$B$21=\"\",\"\",'Comp Test for Darker than Std'!$B$21)","v":"Sample"},{"$f":"IF('Comp Test for Darker than Std'!$B$23=\"\",\"\",'Comp Test for Darker than Std'!$B$23)","v":1}]
[17,{"$f":"IF('Comp Test for Darker than Std'!$C$24=\"\",\"\",'Comp Test for Darker than Std'!$C$24)","v":""},{"$f":"IF('Comp Test for Darker than Std'!$B$5=\"\",\"\",'Comp Test for Darker than Std'!$B$5)","v":"AASHTO T 71"},{"$f":"IF('Comp Test for Darker than Std'!$B$20=\"\",\"\",'Comp Test for Darker than Std'!$B$20)","v":"BATCH 1 - Washed"},{"$f":"IF('Comp Test for Darker than Std'!$C$21=\"\",\"\",'Comp Test for Darker than Std'!$C$21)","v":"Sample ID"},{"$f":"IF('Comp Test for Darker than Std'!$B$21=\"\",\"\",'Comp Test for Darker than Std'!$B$21)","v":"Sample"},{"$f":"IF('Comp Test for Darker than Std'!$B$24=\"\",\"\",'Comp Test for Darker than Std'!$B$24)","v":2}]
[18,{"$f":"IF('Comp Test for Darker than Std'!$D$24=\"\",\"\",'Comp Test for Darker than Std'!$D$24)","v":""},{"$f":"IF('Comp Test for Darker than Std'!$B$5=\"\",\"\",'Comp Test for Darker than Std'!$B$5)","v":"AASHTO T 71"},{"$f":"IF('Comp Test for Darker than Std'!$B$20=\"\",\"\",'Comp Test for Darker than Std'!$B$20)","v":"BATCH 1 - Washed"},{"$f":"IF('Comp Test for Darker than Std'!$D$21=\"\",\"\",'Comp Test for Darker than Std'!$D$21)","v":"Age"},{"$f":"IF('Comp Test for Darker than Std'!$B$21=\"\",\"\",'Comp Test for Darker than Std'!$B$21)","v":"Sample"},{"$f":"IF('Comp Test for Darker than Std'!$B$24=\"\",\"\",'Comp Test for Darker than Std'!$B$24)","v":2}]
[19,{"$f":"IF('Comp Test for Darker than Std'!$E$24=\"\",\"\",'Comp Test for Darker than Std'!$E$24)","v":""},{"$f":"IF('Comp Test for Darker than Std'!$B$5=\"\",\"\",'Comp Test for Darker than Std'!$B$5)","v":"AASHTO T 71"},{"$f":"IF('Comp Test for Darker than Std'!$B$20=\"\",\"\",'Comp Test for Darker than Std'!$B$20)","v":"BATCH 1 - Washed"},{"$f":"IF('Comp Test for Darker than Std'!$E$21=\"\",\"\",'Comp Test for Darker than Std'!$E$21)","v":"Length"},{"$f":"IF('Comp Test for Darker than Std'!$E$22=\"\",\"\",'Comp Test for Darker than Std'!$E$22)","v":""},{"$f":"IF('Comp Test for Darker than Std'!$B$21=\"\",\"\",'Comp Test for Darker than Std'!$B$21)","v":"Sample"},{"$f":"IF('Comp Test for Darker than Std'!$B$24=\"\",\"\",'Comp Test for Darker than Std'!$B$24)","v":2}]
[20,{"$f":"IF('Comp Test for Darker than Std'!$F$24=\"\",\"\",'Comp Test for Darker than Std'!$F$24)","v":""},{"$f":"IF('Comp Test for Darker than Std'!$B$5=\"\",\"\",'Comp Test for Darker than Std'!$B$5)","v":"AASHTO T 71"},{"$f":"IF('Comp Test for Darker than Std'!$B$20=\"\",\"\",'Comp Test for Darker than Std'!$B$20)","v":"BATCH 1 - Washed"},{"$f":"IF('Comp Test for Darker than Std'!$F$21=\"\",\"\",'Comp Test for Darker than Std'!$F$21)","v":"Width"},{"$f":"IF('Comp Test for Darker than Std'!$F$22=\"\",\"\",'Comp Test for Darker than Std'!$F$22)","v":""},{"$f":"IF('Comp Test for Darker than Std'!$B$21=\"\",\"\",'Comp Test for Darker than Std'!$B$21)","v":"Sample"},{"$f":"IF('Comp Test for Darker than Std'!$B$24=\"\",\"\",'Comp Test for Darker than Std'!$B$24)","v":2}]
[21,{"$f":"IF('Comp Test for Darker than Std'!$G$24=\"\",\"\",'Comp Test for Darker than Std'!$G$24)","v":0},{"$f":"IF('Comp Test for Darker than Std'!$B$5=\"\",\"\",'Comp Test for Darker than Std'!$B$5)","v":"AASHTO T 71"},{"$f":"IF('Comp Test for Darker than Std'!$B$20=\"\",\"\",'Comp Test for Darker than Std'!$B$20)","v":"BATCH 1 - Washed"},{"$f":"IF('Comp Test for Darker than Std'!$G$21=\"\",\"\",'Comp Test for Darker than Std'!$G$21)","v":"Area"},{"$f":"IF('Comp Test for Darker than Std'!$G$22=\"\",\"\",'Comp Test for Darker than Std'!$G$22)","v":""},{"$f":"IF('Comp Test for Darker than Std'!$B$21=\"\",\"\",'Comp Test for Darker than Std'!$B$21)","v":"Sample"},{"$f":"IF('Comp Test for Darker than Std'!$B$24=\"\",\"\",'Comp Test for Darker than Std'!$B$24)","v":2}]
[22,{"$f":"IF('Comp Test for Darker than Std'!$H$24=\"\",\"\",'Comp Test for Darker than Std'!$H$24)","v":""},{"$f":"IF('Comp Test for Darker than Std'!$B$5=\"\",\"\",'Comp Test for Darker than Std'!$B$5)","v":"AASHTO T 71"},{"$f":"IF('Comp Test for Darker than Std'!$B$20=\"\",\"\",'Comp Test for Darker than Std'!$B$20)","v":"BATCH 1 - Washed"},{"$f":"IF('Comp Test for Darker than Std'!$H$21=\"\",\"\",'Comp Test for Darker than Std'!$H$21)","v":"Load"},{"$f":"IF('Comp Test for Darker than Std'!$H$22=\"\",\"\",'Comp Test for Darker than Std'!$H$22)","v":""},{"$f":"IF('Comp Test for Darker than Std'!$B$21=\"\",\"\",'Comp Test for Darker than Std'!$B$21)","v":"Sample"},{"$f":"IF('Comp Test for Darker than Std'!$B$24=\"\",\"\",'Comp Test for Darker than Std'!$B$24)","v":2}]
[23,{"$f":"IF('Comp Test for Darker than Std'!$I$24=\"\",\"\",'Comp Test for Darker than Std'!$I$24)","v":0},{"$f":"IF('Comp Test for Darker than Std'!$B$5=\"\",\"\",'Comp Test for Darker than Std'!$B$5)","v":"AASHTO T 71"},{"$f":"IF('Comp Test for Darker than Std'!$B$20=\"\",\"\",'Comp Test for Darker than Std'!$B$20)","v":"BATCH 1 - Washed"},{"$f":"IF('Comp Test for Darker than Std'!$I$21=\"\",\"\",'Comp Test for Darker than Std'!$I$21)","v":"Compressive Strength"},{"$f":"IF('Comp Test for Darker than Std'!$I$22=\"\",\"\",'Comp Test for Darker than Std'!$I$22)","v":""},{"$f":"IF('Comp Test for Darker than Std'!$B$21=\"\",\"\",'Comp Test for Darker than Std'!$B$21)","v":"Sample"},{"$f":"IF('Comp Test for Darker than Std'!$B$24=\"\",\"\",'Comp Test for Darker than Std'!$B$24)","v":2}]
[24,{"$f":"IF('Comp Test for Darker than Std'!$C$25=\"\",\"\",'Comp Test for Darker than Std'!$C$25)","v":""},{"$f":"IF('Comp Test for Darker than Std'!$B$5=\"\",\"\",'Comp Test for Darker than Std'!$B$5)","v":"AASHTO T 71"},{"$f":"IF('Comp Test for Darker than Std'!$B$20=\"\",\"\",'Comp Test for Darker than Std'!$B$20)","v":"BATCH 1 - Washed"},{"$f":"IF('Comp Test for Darker than Std'!$C$21=\"\",\"\",'Comp Test for Darker than Std'!$C$21)","v":"Sample ID"},{"$f":"IF('Comp Test for Darker than Std'!$B$21=\"\",\"\",'Comp Test for Darker than Std'!$B$21)","v":"Sample"},{"$f":"IF('Comp Test for Darker than Std'!$B$25=\"\",\"\",'Comp Test for Darker than Std'!$B$25)","v":3}]
[25,{"$f":"IF('Comp Test for Darker than Std'!$D$25=\"\",\"\",'Comp Test for Darker than Std'!$D$25)","v":""},{"$f":"IF('Comp Test for Darker than Std'!$B$5=\"\",\"\",'Comp Test for Darker than Std'!$B$5)","v":"AASHTO T 71"},{"$f":"IF('Comp Test for Darker than Std'!$B$20=\"\",\"\",'Comp Test for Darker than Std'!$B$20)","v":"BATCH 1 - Washed"},{"$f":"IF('Comp Test for Darker than Std'!$D$21=\"\",\"\",'Comp Test for Darker than Std'!$D$21)","v":"Age"},{"$f":"IF('Comp Test for Darker than Std'!$B$21=\"\",\"\",'Comp Test for Darker than Std'!$B$21)","v":"Sample"},{"$f":"IF('Comp Test for Darker than Std'!$B$25=\"\",\"\",'Comp Test for Darker than Std'!$B$25)","v":3}]
[26,{"$f":"IF('Comp Test for Darker than Std'!$E$25=\"\",\"\",'Comp Test for Darker than Std'!$E$25)","v":""},{"$f":"IF('Comp Test for Darker than Std'!$B$5=\"\",\"\",'Comp Test for Darker than Std'!$B$5)","v":"AASHTO T 71"},{"$f":"IF('Comp Test for Darker than Std'!$B$20=\"\",\"\",'Comp Test for Darker than Std'!$B$20)","v":"BATCH 1 - Washed"},{"$f":"IF('Comp Test for Darker than Std'!$E$21=\"\",\"\",'Comp Test for Darker than Std'!$E$21)","v":"Length"},{"$f":"IF('Comp Test for Darker than Std'!$E$22=\"\",\"\",'Comp Test for Darker than Std'!$E$22)","v":""},{"$f":"IF('Comp Test for Darker than Std'!$B$21=\"\",\"\",'Comp Test for Darker than Std'!$B$21)","v":"Sample"},{"$f":"IF('Comp Test for Darker than Std'!$B$25=\"\",\"\",'Comp Test for Darker than Std'!$B$25)","v":3}]
[27,{"$f":"IF('Comp Test for Darker than Std'!$F$25=\"\",\"\",'Comp Test for Darker than Std'!$F$25)","v":""},{"$f":"IF('Comp Test for Darker than Std'!$B$5=\"\",\"\",'Comp Test for Darker than Std'!$B$5)","v":"AASHTO T 71"},{"$f":"IF('Comp Test for Darker than Std'!$B$20=\"\",\"\",'Comp Test for Darker than Std'!$B$20)","v":"BATCH 1 - Washed"},{"$f":"IF('Comp Test for Darker than Std'!$F$21=\"\",\"\",'Comp Test for Darker than Std'!$F$21)","v":"Width"},{"$f":"IF('Comp Test for Darker than Std'!$F$22=\"\",\"\",'Comp Test for Darker than Std'!$F$22)","v":""},{"$f":"IF('Comp Test for Darker than Std'!$B$21=\"\",\"\",'Comp Test for Darker than Std'!$B$21)","v":"Sample"},{"$f":"IF('Comp Test for Darker than Std'!$B$25=\"\",\"\",'Comp Test for Darker than Std'!$B$25)","v":3}]
[28,{"$f":"IF('Comp Test for Darker than Std'!$G$25=\"\",\"\",'Comp Test for Darker than Std'!$G$25)","v":0},{"$f":"IF('Comp Test for Darker than Std'!$B$5=\"\",\"\",'Comp Test for Darker than Std'!$B$5)","v":"AASHTO T 71"},{"$f":"IF('Comp Test for Darker than Std'!$B$20=\"\",\"\",'Comp Test for Darker than Std'!$B$20)","v":"BATCH 1 - Washed"},{"$f":"IF('Comp Test for Darker than Std'!$G$21=\"\",\"\",'Comp Test for Darker than Std'!$G$21)","v":"Area"},{"$f":"IF('Comp Test for Darker than Std'!$G$22=\"\",\"\",'Comp Test for Darker than Std'!$G$22)","v":""},{"$f":"IF('Comp Test for Darker than Std'!$B$21=\"\",\"\",'Comp Test for Darker than Std'!$B$21)","v":"Sample"},{"$f":"IF('Comp Test for Darker than Std'!$B$25=\"\",\"\",'Comp Test for Darker than Std'!$B$25)","v":3}]
[29,{"$f":"IF('Comp Test for Darker than Std'!$H$25=\"\",\"\",'Comp Test for Darker than Std'!$H$25)","v":""},{"$f":"IF('Comp Test for Darker than Std'!$B$5=\"\",\"\",'Comp Test for Darker than Std'!$B$5)","v":"AASHTO T 71"},{"$f":"IF('Comp Test for Darker than Std'!$B$20=\"\",\"\",'Comp Test for Darker than Std'!$B$20)","v":"BATCH 1 - Washed"},{"$f":"IF('Comp Test for Darker than Std'!$H$21=\"\",\"\",'Comp Test for Darker than Std'!$H$21)","v":"Load"},{"$f":"IF('Comp Test for Darker than Std'!$H$22=\"\",\"\",'Comp Test for Darker than Std'!$H$22)","v":""},{"$f":"IF('Comp Test for Darker than Std'!$B$21=\"\",\"\",'Comp Test for Darker than Std'!$B$21)","v":"Sample"},{"$f":"IF('Comp Test for Darker than Std'!$B$25=\"\",\"\",'Comp Test for Darker than Std'!$B$25)","v":3}]
[30,{"$f":"IF('Comp Test for Darker than Std'!$I$25=\"\",\"\",'Comp Test for Darker than Std'!$I$25)","v":0},{"$f":"IF('Comp Test for Darker than Std'!$B$5=\"\",\"\",'Comp Test for Darker than Std'!$B$5)","v":"AASHTO T 71"},{"$f":"IF('Comp Test for Darker than Std'!$B$20=\"\",\"\",'Comp Test for Darker than Std'!$B$20)","v":"BATCH 1 - Washed"},{"$f":"IF('Comp Test for Darker than Std'!$I$21=\"\",\"\",'Comp Test for Darker than Std'!$I$21)","v":"Compressive Strength"},{"$f":"IF('Comp Test for Darker than Std'!$I$22=\"\",\"\",'Comp Test for Darker than Std'!$I$22)","v":""},{"$f":"IF('Comp Test for Darker than Std'!$B$21=\"\",\"\",'Comp Test for Darker than Std'!$B$21)","v":"Sample"},{"$f":"IF('Comp Test for Darker than Std'!$B$25=\"\",\"\",'Comp Test for Darker than Std'!$B$25)","v":3}]
[31,{"$f":"IF('Comp Test for Darker than Std'!$I$26=\"\",\"\",'Comp Test for Darker than Std'!$I$26)","v":0},{"$f":"IF('Comp Test for Darker than Std'!$B$5=\"\",\"\",'Comp Test for Darker than Std'!$B$5)","v":"AASHTO T 71"},{"$f":"IF('Comp Test for Darker than Std'!$B$20=\"\",\"\",'Comp Test for Darker than Std'!$B$20)","v":"BATCH 1 - Washed"},{"$f":"IF('Comp Test for Darker than Std'!$I$21=\"\",\"\",'Comp Test for Darker than Std'!$I$21)","v":"Compressive Strength"},{"$f":"IF('Comp Test for Darker than Std'!$I$22=\"\",\"\",'Comp Test for Darker than Std'!$I$22)","v":""},{"$f":"IF('Comp Test for Darker than Std'!$G$26=\"\",\"\",'Comp Test for Darker than Std'!$G$26)","v":"Average Strength:"}]
[32,{"$f":"IF('Comp Test for Darker than Std'!$C$30=\"\",\"\",'Comp Test for Darker than Std'!$C$30)","v":""},{"$f":"IF('Comp Test for Darker than Std'!$B$5=\"\",\"\",'Comp Test for Darker than Std'!$B$5)","v":"AASHTO T 71"},{"$f":"IF('Comp Test for Darker than Std'!$B$27=\"\",\"\",'Comp Test for Darker than Std'!$B$27)","v":"BATCH 1 - Unwashed"},{"$f":"IF('Comp Test for Darker than Std'!$C$28=\"\",\"\",'Comp Test for Darker than Std'!$C$28)","v":"Sample Number"},{"$f":"IF('Comp Test for Darker than Std'!$B$28=\"\",\"\",'Comp Test for Darker than Std'!$B$28)","v":"Sample"},{"$f":"IF('Comp Test for Darker than Std'!$B$30=\"\",\"\",'Comp Test for Darker than Std'!$B$30)","v":1}]
[33,{"$f":"IF('Comp Test for Darker than Std'!$D$30=\"\",\"\",'Comp Test for Darker than Std'!$D$30)","v":""},{"$f":"IF('Comp Test for Darker than Std'!$B$5=\"\",\"\",'Comp Test for Darker than Std'!$B$5)","v":"AASHTO T 71"},{"$f":"IF('Comp Test for Darker than Std'!$B$27=\"\",\"\",'Comp Test for Darker than Std'!$B$27)","v":"BATCH 1 - Unwashed"},{"$f":"IF('Comp Test for Darker than Std'!$D$28=\"\",\"\",'Comp Test for Darker than Std'!$D$28)","v":"Age"},{"$f":"IF('Comp Test for Darker than Std'!$B$28=\"\",\"\",'Comp Test for Darker than Std'!$B$28)","v":"Sample"},{"$f":"IF('Comp Test for Darker than Std'!$B$30=\"\",\"\",'Comp Test for Darker than Std'!$B$30)","v":1}]
[34,{"$f":"IF('Comp Test for Darker than Std'!$E$30=\"\",\"\",'Comp Test for Darker than Std'!$E$30)","v":""},{"$f":"IF('Comp Test for Darker than Std'!$B$5=\"\",\"\",'Comp Test for Darker than Std'!$B$5)","v":"AASHTO T 71"},{"$f":"IF('Comp Test for Darker than Std'!$B$27=\"\",\"\",'Comp Test for Darker than Std'!$B$27)","v":"BATCH 1 - Unwashed"},{"$f":"IF('Comp Test for Darker than Std'!$E$28=\"\",\"\",'Comp Test for Darker than Std'!$E$28)","v":"Length"},{"$f":"IF('Comp Test for Darker than Std'!$E$29=\"\",\"\",'Comp Test for Darker than Std'!$E$29)","v":""},{"$f":"IF('Comp Test for Darker than Std'!$B$28=\"\",\"\",'Comp Test for Darker than Std'!$B$28)","v":"Sample"},{"$f":"IF('Comp Test for Darker than Std'!$B$30=\"\",\"\",'Comp Test for Darker than Std'!$B$30)","v":1}]
[35,{"$f":"IF('Comp Test for Darker than Std'!$F$30=\"\",\"\",'Comp Test for Darker than Std'!$F$30)","v":""},{"$f":"IF('Comp Test for Darker than Std'!$B$5=\"\",\"\",'Comp Test for Darker than Std'!$B$5)","v":"AASHTO T 71"},{"$f":"IF('Comp Test for Darker than Std'!$B$27=\"\",\"\",'Comp Test for Darker than Std'!$B$27)","v":"BATCH 1 - Unwashed"},{"$f":"IF('Comp Test for Darker than Std'!$F$28=\"\",\"\",'Comp Test for Darker than Std'!$F$28)","v":"Width"},{"$f":"IF('Comp Test for Darker than Std'!$F$29=\"\",\"\",'Comp Test for Darker than Std'!$F$29)","v":""},{"$f":"IF('Comp Test for Darker than Std'!$B$28=\"\",\"\",'Comp Test for Darker than Std'!$B$28)","v":"Sample"},{"$f":"IF('Comp Test for Darker than Std'!$B$30=\"\",\"\",'Comp Test for Darker than Std'!$B$30)","v":1}]
[36,{"$f":"IF('Comp Test for Darker than Std'!$G$30=\"\",\"\",'Comp Test for Darker than Std'!$G$30)","v":0},{"$f":"IF('Comp Test for Darker than Std'!$B$5=\"\",\"\",'Comp Test for Darker than Std'!$B$5)","v":"AASHTO T 71"},{"$f":"IF('Comp Test for Darker than Std'!$B$27=\"\",\"\",'Comp Test for Darker than Std'!$B$27)","v":"BATCH 1 - Unwashed"},{"$f":"IF('Comp Test for Darker than Std'!$G$28=\"\",\"\",'Comp Test for Darker than Std'!$G$28)","v":"Area"},{"$f":"IF('Comp Test for Darker than Std'!$G$29=\"\",\"\",'Comp Test for Darker than Std'!$G$29)","v":""},{"$f":"IF('Comp Test for Darker than Std'!$B$28=\"\",\"\",'Comp Test for Darker than Std'!$B$28)","v":"Sample"},{"$f":"IF('Comp Test for Darker than Std'!$B$30=\"\",\"\",'Comp Test for Darker than Std'!$B$30)","v":1}]
[37,{"$f":"IF('Comp Test for Darker than Std'!$H$30=\"\",\"\",'Comp Test for Darker than Std'!$H$30)","v":""},{"$f":"IF('Comp Test for Darker than Std'!$B$5=\"\",\"\",'Comp Test for Darker than Std'!$B$5)","v":"AASHTO T 71"},{"$f":"IF('Comp Test for Darker than Std'!$B$27=\"\",\"\",'Comp Test for Darker than Std'!$B$27)","v":"BATCH 1 - Unwashed"},{"$f":"IF('Comp Test for Darker than Std'!$H$28=\"\",\"\",'Comp Test for Darker than Std'!$H$28)","v":"Load"},{"$f":"IF('Comp Test for Darker than Std'!$H$29=\"\",\"\",'Comp Test for Darker than Std'!$H$29)","v":""},{"$f":"IF('Comp Test for Darker than Std'!$B$28=\"\",\"\",'Comp Test for Darker than Std'!$B$28)","v":"Sample"},{"$f":"IF('Comp Test for Darker than Std'!$B$30=\"\",\"\",'Comp Test for Darker than Std'!$B$30)","v":1}]
[38,{"$f":"IF('Comp Test for Darker than Std'!$I$30=\"\",\"\",'Comp Test for Darker than Std'!$I$30)","v":0},{"$f":"IF('Comp Test for Darker than Std'!$B$5=\"\",\"\",'Comp Test for Darker than Std'!$B$5)","v":"AASHTO T 71"},{"$f":"IF('Comp Test for Darker than Std'!$B$27=\"\",\"\",'Comp Test for Darker than Std'!$B$27)","v":"BATCH 1 - Unwashed"},{"$f":"IF('Comp Test for Darker than Std'!$I$28=\"\",\"\",'Comp Test for Darker than Std'!$I$28)","v":"Compressive Strength"},{"$f":"IF('Comp Test for Darker than Std'!$I$29=\"\",\"\",'Comp Test for Darker than Std'!$I$29)","v":""},{"$f":"IF('Comp Test for Darker than Std'!$B$28=\"\",\"\",'Comp Test for Darker than Std'!$B$28)","v":"Sample"},{"$f":"IF('Comp Test for Darker than Std'!$B$30=\"\",\"\",'Comp Test for Darker than Std'!$B$30)","v":1}]
[39,{"$f":"IF('Comp Test for Darker than Std'!$C$31=\"\",\"\",'Comp Test for Darker than Std'!$C$31)","v":""},{"$f":"IF('Comp Test for Darker than Std'!$B$5=\"\",\"\",'Comp Test for Darker than Std'!$B$5)","v":"AASHTO T 71"},{"$f":"IF('Comp Test for Darker than Std'!$B$27=\"\",\"\",'Comp Test for Darker than Std'!$B$27)","v":"BATCH 1 - Unwashed"},{"$f":"IF('Comp Test for Darker than Std'!$C$28=\"\",\"\",'Comp Test for Darker than Std'!$C$28)","v":"Sample Number"},{"$f":"IF('Comp Test for Darker than Std'!$B$28=\"\",\"\",'Comp Test for Darker than Std'!$B$28)","v":"Sample"},{"$f":"IF('Comp Test for Darker than Std'!$B$31=\"\",\"\",'Comp Test for Darker than Std'!$B$31)","v":2}]
[40,{"$f":"IF('Comp Test for Darker than Std'!$D$31=\"\",\"\",'Comp Test for Darker than Std'!$D$31)","v":""},{"$f":"IF('Comp Test for Darker than Std'!$B$5=\"\",\"\",'Comp Test for Darker than Std'!$B$5)","v":"AASHTO T 71"},{"$f":"IF('Comp Test for Darker than Std'!$B$27=\"\",\"\",'Comp Test for Darker than Std'!$B$27)","v":"BATCH 1 - Unwashed"},{"$f":"IF('Comp Test for Darker than Std'!$D$28=\"\",\"\",'Comp Test for Darker than Std'!$D$28)","v":"Age"},{"$f":"IF('Comp Test for Darker than Std'!$B$28=\"\",\"\",'Comp Test for Darker than Std'!$B$28)","v":"Sample"},{"$f":"IF('Comp Test for Darker than Std'!$B$31=\"\",\"\",'Comp Test for Darker than Std'!$B$31)","v":2}]
[41,{"$f":"IF('Comp Test for Darker than Std'!$E$31=\"\",\"\",'Comp Test for Darker than Std'!$E$31)","v":""},{"$f":"IF('Comp Test for Darker than Std'!$B$5=\"\",\"\",'Comp Test for Darker than Std'!$B$5)","v":"AASHTO T 71"},{"$f":"IF('Comp Test for Darker than Std'!$B$27=\"\",\"\",'Comp Test for Darker than Std'!$B$27)","v":"BATCH 1 - Unwashed"},{"$f":"IF('Comp Test for Darker than Std'!$E$28=\"\",\"\",'Comp Test for Darker than Std'!$E$28)","v":"Length"},{"$f":"IF('Comp Test for Darker than Std'!$E$29=\"\",\"\",'Comp Test for Darker than Std'!$E$29)","v":""},{"$f":"IF('Comp Test for Darker than Std'!$B$28=\"\",\"\",'Comp Test for Darker than Std'!$B$28)","v":"Sample"},{"$f":"IF('Comp Test for Darker than Std'!$B$31=\"\",\"\",'Comp Test for Darker than Std'!$B$31)","v":2}]
[42,{"$f":"IF('Comp Test for Darker than Std'!$F$31=\"\",\"\",'Comp Test for Darker than Std'!$F$31)","v":""},{"$f":"IF('Comp Test for Darker than Std'!$B$5=\"\",\"\",'Comp Test for Darker than Std'!$B$5)","v":"AASHTO T 71"},{"$f":"IF('Comp Test for Darker than Std'!$B$27=\"\",\"\",'Comp Test for Darker than Std'!$B$27)","v":"BATCH 1 - Unwashed"},{"$f":"IF('Comp Test for Darker than Std'!$F$28=\"\",\"\",'Comp Test for Darker than Std'!$F$28)","v":"Width"},{"$f":"IF('Comp Test for Darker than Std'!$F$29=\"\",\"\",'Comp Test for Darker than Std'!$F$29)","v":""},{"$f":"IF('Comp Test for Darker than Std'!$B$28=\"\",\"\",'Comp Test for Darker than Std'!$B$28)","v":"Sample"},{"$f":"IF('Comp Test for Darker than Std'!$B$31=\"\",\"\",'Comp Test for Darker than Std'!$B$31)","v":2}]
[43,{"$f":"IF('Comp Test for Darker than Std'!$G$31=\"\",\"\",'Comp Test for Darker than Std'!$G$31)","v":0},{"$f":"IF('Comp Test for Darker than Std'!$B$5=\"\",\"\",'Comp Test for Darker than Std'!$B$5)","v":"AASHTO T 71"},{"$f":"IF('Comp Test for Darker than Std'!$B$27=\"\",\"\",'Comp Test for Darker than Std'!$B$27)","v":"BATCH 1 - Unwashed"},{"$f":"IF('Comp Test for Darker than Std'!$G$28=\"\",\"\",'Comp Test for Darker than Std'!$G$28)","v":"Area"},{"$f":"IF('Comp Test for Darker than Std'!$G$29=\"\",\"\",'Comp Test for Darker than Std'!$G$29)","v":""},{"$f":"IF('Comp Test for Darker than Std'!$B$28=\"\",\"\",'Comp Test for Darker than Std'!$B$28)","v":"Sample"},{"$f":"IF('Comp Test for Darker than Std'!$B$31=\"\",\"\",'Comp Test for Darker than Std'!$B$31)","v":2}]
[44,{"$f":"IF('Comp Test for Darker than Std'!$H$31=\"\",\"\",'Comp Test for Darker than Std'!$H$31)","v":""},{"$f":"IF('Comp Test for Darker than Std'!$B$5=\"\",\"\",'Comp Test for Darker than Std'!$B$5)","v":"AASHTO T 71"},{"$f":"IF('Comp Test for Darker than Std'!$B$27=\"\",\"\",'Comp Test for Darker than Std'!$B$27)","v":"BATCH 1 - Unwashed"},{"$f":"IF('Comp Test for Darker than Std'!$H$28=\"\",\"\",'Comp Test for Darker than Std'!$H$28)","v":"Load"},{"$f":"IF('Comp Test for Darker than Std'!$H$29=\"\",\"\",'Comp Test for Darker than Std'!$H$29)","v":""},{"$f":"IF('Comp Test for Darker than Std'!$B$28=\"\",\"\",'Comp Test for Darker than Std'!$B$28)","v":"Sample"},{"$f":"IF('Comp Test for Darker than Std'!$B$31=\"\",\"\",'Comp Test for Darker than Std'!$B$31)","v":2}]
[45,{"$f":"IF('Comp Test for Darker than Std'!$I$31=\"\",\"\",'Comp Test for Darker than Std'!$I$31)","v":0},{"$f":"IF('Comp Test for Darker than Std'!$B$5=\"\",\"\",'Comp Test for Darker than Std'!$B$5)","v":"AASHTO T 71"},{"$f":"IF('Comp Test for Darker than Std'!$B$27=\"\",\"\",'Comp Test for Darker than Std'!$B$27)","v":"BATCH 1 - Unwashed"},{"$f":"IF('Comp Test for Darker than Std'!$I$28=\"\",\"\",'Comp Test for Darker than Std'!$I$28)","v":"Compressive Strength"},{"$f":"IF('Comp Test for Darker than Std'!$I$29=\"\",\"\",'Comp Test for Darker than Std'!$I$29)","v":""},{"$f":"IF('Comp Test for Darker than Std'!$B$28=\"\",\"\",'Comp Test for Darker than Std'!$B$28)","v":"Sample"},{"$f":"IF('Comp Test for Darker than Std'!$B$31=\"\",\"\",'Comp Test for Darker than Std'!$B$31)","v":2}]
[46,{"$f":"IF('Comp Test for Darker than Std'!$C$32=\"\",\"\",'Comp Test for Darker than Std'!$C$32)","v":""},{"$f":"IF('Comp Test for Darker than Std'!$B$5=\"\",\"\",'Comp Test for Darker than Std'!$B$5)","v":"AASHTO T 71"},{"$f":"IF('Comp Test for Darker than Std'!$B$27=\"\",\"\",'Comp Test for Darker than Std'!$B$27)","v":"BATCH 1 - Unwashed"},{"$f":"IF('Comp Test for Darker than Std'!$C$28=\"\",\"\",'Comp Test for Darker than Std'!$C$28)","v":"Sample Number"},{"$f":"IF('Comp Test for Darker than Std'!$B$28=\"\",\"\",'Comp Test for Darker than Std'!$B$28)","v":"Sample"},{"$f":"IF('Comp Test for Darker than Std'!$B$32=\"\",\"\",'Comp Test for Darker than Std'!$B$32)","v":3}]
[47,{"$f":"IF('Comp Test for Darker than Std'!$D$32=\"\",\"\",'Comp Test for Darker than Std'!$D$32)","v":""},{"$f":"IF('Comp Test for Darker than Std'!$B$5=\"\",\"\",'Comp Test for Darker than Std'!$B$5)","v":"AASHTO T 71"},{"$f":"IF('Comp Test for Darker than Std'!$B$27=\"\",\"\",'Comp Test for Darker than Std'!$B$27)","v":"BATCH 1 - Unwashed"},{"$f":"IF('Comp Test for Darker than Std'!$D$28=\"\",\"\",'Comp Test for Darker than Std'!$D$28)","v":"Age"},{"$f":"IF('Comp Test for Darker than Std'!$B$28=\"\",\"\",'Comp Test for Darker than Std'!$B$28)","v":"Sample"},{"$f":"IF('Comp Test for Darker than Std'!$B$32=\"\",\"\",'Comp Test for Darker than Std'!$B$32)","v":3}]
[48,{"$f":"IF('Comp Test for Darker than Std'!$E$32=\"\",\"\",'Comp Test for Darker than Std'!$E$32)","v":""},{"$f":"IF('Comp Test for Darker than Std'!$B$5=\"\",\"\",'Comp Test for Darker than Std'!$B$5)","v":"AASHTO T 71"},{"$f":"IF('Comp Test for Darker than Std'!$B$27=\"\",\"\",'Comp Test for Darker than Std'!$B$27)","v":"BATCH 1 - Unwashed"},{"$f":"IF('Comp Test for Darker than Std'!$E$28=\"\",\"\",'Comp Test for Darker than Std'!$E$28)","v":"Length"},{"$f":"IF('Comp Test for Darker than Std'!$E$29=\"\",\"\",'Comp Test for Darker than Std'!$E$29)","v":""},{"$f":"IF('Comp Test for Darker than Std'!$B$28=\"\",\"\",'Comp Test for Darker than Std'!$B$28)","v":"Sample"},{"$f":"IF('Comp Test for Darker than Std'!$B$32=\"\",\"\",'Comp Test for Darker than Std'!$B$32)","v":3}]
[49,{"$f":"IF('Comp Test for Darker than Std'!$F$32=\"\",\"\",'Comp Test for Darker than Std'!$F$32)","v":""},{"$f":"IF('Comp Test for Darker than Std'!$B$5=\"\",\"\",'Comp Test for Darker than Std'!$B$5)","v":"AASHTO T 71"},{"$f":"IF('Comp Test for Darker than Std'!$B$27=\"\",\"\",'Comp Test for Darker than Std'!$B$27)","v":"BATCH 1 - Unwashed"},{"$f":"IF('Comp Test for Darker than Std'!$F$28=\"\",\"\",'Comp Test for Darker than Std'!$F$28)","v":"Width"},{"$f":"IF('Comp Test for Darker than Std'!$F$29=\"\",\"\",'Comp Test for Darker than Std'!$F$29)","v":""},{"$f":"IF('Comp Test for Darker than Std'!$B$28=\"\",\"\",'Comp Test for Darker than Std'!$B$28)","v":"Sample"},{"$f":"IF('Comp Test for Darker than Std'!$B$32=\"\",\"\",'Comp Test for Darker than Std'!$B$32)","v":3}]
[50,{"$f":"IF('Comp Test for Darker than Std'!$G$32=\"\",\"\",'Comp Test for Darker than Std'!$G$32)","v":0},{"$f":"IF('Comp Test for Darker than Std'!$B$5=\"\",\"\",'Comp Test for Darker than Std'!$B$5)","v":"AASHTO T 71"},{"$f":"IF('Comp Test for Darker than Std'!$B$27=\"\",\"\",'Comp Test for Darker than Std'!$B$27)","v":"BATCH 1 - Unwashed"},{"$f":"IF('Comp Test for Darker than Std'!$G$28=\"\",\"\",'Comp Test for Darker than Std'!$G$28)","v":"Area"},{"$f":"IF('Comp Test for Darker than Std'!$G$29=\"\",\"\",'Comp Test for Darker than Std'!$G$29)","v":""},{"$f":"IF('Comp Test for Darker than Std'!$B$28=\"\",\"\",'Comp Test for Darker than Std'!$B$28)","v":"Sample"},{"$f":"IF('Comp Test for Darker than Std'!$B$32=\"\",\"\",'Comp Test for Darker than Std'!$B$32)","v":3}]
[51,{"$f":"IF('Comp Test for Darker than Std'!$H$32=\"\",\"\",'Comp Test for Darker than Std'!$H$32)","v":""},{"$f":"IF('Comp Test for Darker than Std'!$B$5=\"\",\"\",'Comp Test for Darker than Std'!$B$5)","v":"AASHTO T 71"},{"$f":"IF('Comp Test for Darker than Std'!$B$27=\"\",\"\",'Comp Test for Darker than Std'!$B$27)","v":"BATCH 1 - Unwashed"},{"$f":"IF('Comp Test for Darker than Std'!$H$28=\"\",\"\",'Comp Test for Darker than Std'!$H$28)","v":"Load"},{"$f":"IF('Comp Test for Darker than Std'!$H$29=\"\",\"\",'Comp Test for Darker than Std'!$H$29)","v":""},{"$f":"IF('Comp Test for Darker than Std'!$B$28=\"\",\"\",'Comp Test for Darker than Std'!$B$28)","v":"Sample"},{"$f":"IF('Comp Test for Darker than Std'!$B$32=\"\",\"\",'Comp Test for Darker than Std'!$B$32)","v":3}]
[52,{"$f":"IF('Comp Test for Darker than Std'!$I$32=\"\",\"\",'Comp Test for Darker than Std'!$I$32)","v":0},{"$f":"IF('Comp Test for Darker than Std'!$B$5=\"\",\"\",'Comp Test for Darker than Std'!$B$5)","v":"AASHTO T 71"},{"$f":"IF('Comp Test for Darker than Std'!$B$27=\"\",\"\",'Comp Test for Darker than Std'!$B$27)","v":"BATCH 1 - Unwashed"},{"$f":"IF('Comp Test for Darker than Std'!$I$28=\"\",\"\",'Comp Test for Darker than Std'!$I$28)","v":"Compressive Strength"},{"$f":"IF('Comp Test for Darker than Std'!$I$29=\"\",\"\",'Comp Test for Darker than Std'!$I$29)","v":""},{"$f":"IF('Comp Test for Darker than Std'!$B$28=\"\",\"\",'Comp Test for Darker than Std'!$B$28)","v":"Sample"},{"$f":"IF('Comp Test for Darker than Std'!$B$32=\"\",\"\",'Comp Test for Darker than Std'!$B$32)","v":3}]
[53,{"$f":"IF('Comp Test for Darker than Std'!$I$33=\"\",\"\",'Comp Test for Darker than Std'!$I$33)","v":0},{"$f":"IF('Comp Test for Darker than Std'!$B$5=\"\",\"\",'Comp Test for Darker than Std'!$B$5)","v":"AASHTO T 71"},{"$f":"IF('Comp Test for Darker than Std'!$B$27=\"\",\"\",'Comp Test for Darker than Std'!$B$27)","v":"BATCH 1 - Unwashed"},{"$f":"IF('Comp Test for Darker than Std'!$I$28=\"\",\"\",'Comp Test for Darker than Std'!$I$28)","v":"Compressive Strength"},{"$f":"IF('Comp Test for Darker than Std'!$I$29=\"\",\"\",'Comp Test for Darker than Std'!$I$29)","v":""},{"$f":"IF('Comp Test for Darker than Std'!$G$33=\"\",\"\",'Comp Test for Darker than Std'!$G$33)","v":"Average Strength:"}]
[54,{"$f":"IF('Comp Test for Darker than Std'!$C$38=\"\",\"\",'Comp Test for Darker than Std'!$C$38)","v":""},{"$f":"IF('Comp Test for Darker than Std'!$B$5=\"\",\"\",'Comp Test for Darker than Std'!$B$5)","v":"AASHTO T 71"},{"$f":"IF('Comp Test for Darker than Std'!$B$35=\"\",\"\",'Comp Test for Darker than Std'!$B$35)","v":"BATCH 2 - Washed"},{"$f":"IF('Comp Test for Darker than Std'!$C$36=\"\",\"\",'Comp Test for Darker than Std'!$C$36)","v":"Sample Number"},{"$f":"IF('Comp Test for Darker than Std'!$B$36=\"\",\"\",'Comp Test for Darker than Std'!$B$36)","v":"Sample"},{"$f":"IF('Comp Test for Darker than Std'!$B$38=\"\",\"\",'Comp Test for Darker than Std'!$B$38)","v":1}]
[55,{"$f":"IF('Comp Test for Darker than Std'!$D$38=\"\",\"\",'Comp Test for Darker than Std'!$D$38)","v":""},{"$f":"IF('Comp Test for Darker than Std'!$B$5=\"\",\"\",'Comp Test for Darker than Std'!$B$5)","v":"AASHTO T 71"},{"$f":"IF('Comp Test for Darker than Std'!$B$35=\"\",\"\",'Comp Test for Darker than Std'!$B$35)","v":"BATCH 2 - Washed"},{"$f":"IF('Comp Test for Darker than Std'!$D$36=\"\",\"\",'Comp Test for Darker than Std'!$D$36)","v":"Age"},{"$f":"IF('Comp Test for Darker than Std'!$B$36=\"\",\"\",'Comp Test for Darker than Std'!$B$36)","v":"Sample"},{"$f":"IF('Comp Test for Darker than Std'!$B$38=\"\",\"\",'Comp Test for Darker than Std'!$B$38)","v":1}]
[56,{"$f":"IF('Comp Test for Darker than Std'!$E$38=\"\",\"\",'Comp Test for Darker than Std'!$E$38)","v":""},{"$f":"IF('Comp Test for Darker than Std'!$B$5=\"\",\"\",'Comp Test for Darker than Std'!$B$5)","v":"AASHTO T 71"},{"$f":"IF('Comp Test for Darker than Std'!$B$35=\"\",\"\",'Comp Test for Darker than Std'!$B$35)","v":"BATCH 2 - Washed"},{"$f":"IF('Comp Test for Darker than Std'!$E$36=\"\",\"\",'Comp Test for Darker than Std'!$E$36)","v":"Length"},{"$f":"IF('Comp Test for Darker than Std'!$E$37=\"\",\"\",'Comp Test for Darker than Std'!$E$37)","v":""},{"$f":"IF('Comp Test for Darker than Std'!$B$36=\"\",\"\",'Comp Test for Darker than Std'!$B$36)","v":"Sample"},{"$f":"IF('Comp Test for Darker than Std'!$B$38=\"\",\"\",'Comp Test for Darker than Std'!$B$38)","v":1}]
[57,{"$f":"IF('Comp Test for Darker than Std'!$F$38=\"\",\"\",'Comp Test for Darker than Std'!$F$38)","v":""},{"$f":"IF('Comp Test for Darker than Std'!$B$5=\"\",\"\",'Comp Test for Darker than Std'!$B$5)","v":"AASHTO T 71"},{"$f":"IF('Comp Test for Darker than Std'!$B$35=\"\",\"\",'Comp Test for Darker than Std'!$B$35)","v":"BATCH 2 - Washed"},{"$f":"IF('Comp Test for Darker than Std'!$F$36=\"\",\"\",'Comp Test for Darker than Std'!$F$36)","v":"Width"},{"$f":"IF('Comp Test for Darker than Std'!$F$37=\"\",\"\",'Comp Test for Darker than Std'!$F$37)","v":""},{"$f":"IF('Comp Test for Darker than Std'!$B$36=\"\",\"\",'Comp Test for Darker than Std'!$B$36)","v":"Sample"},{"$f":"IF('Comp Test for Darker than Std'!$B$38=\"\",\"\",'Comp Test for Darker than Std'!$B$38)","v":1}]
[58,{"$f":"IF('Comp Test for Darker than Std'!$G$38=\"\",\"\",'Comp Test for Darker than Std'!$G$38)","v":0},{"$f":"IF('Comp Test for Darker than Std'!$B$5=\"\",\"\",'Comp Test for Darker than Std'!$B$5)","v":"AASHTO T 71"},{"$f":"IF('Comp Test for Darker than Std'!$B$35=\"\",\"\",'Comp Test for Darker than Std'!$B$35)","v":"BATCH 2 - Washed"},{"$f":"IF('Comp Test for Darker than Std'!$G$36=\"\",\"\",'Comp Test for Darker than Std'!$G$36)","v":"Area"},{"$f":"IF('Comp Test for Darker than Std'!$G$37=\"\",\"\",'Comp Test for Darker than Std'!$G$37)","v":""},{"$f":"IF('Comp Test for Darker than Std'!$B$36=\"\",\"\",'Comp Test for Darker than Std'!$B$36)","v":"Sample"},{"$f":"IF('Comp Test for Darker than Std'!$B$38=\"\",\"\",'Comp Test for Darker than Std'!$B$38)","v":1}]
[59,{"$f":"IF('Comp Test for Darker than Std'!$H$38=\"\",\"\",'Comp Test for Darker than Std'!$H$38)","v":""},{"$f":"IF('Comp Test for Darker than Std'!$B$5=\"\",\"\",'Comp Test for Darker than Std'!$B$5)","v":"AASHTO T 71"},{"$f":"IF('Comp Test for Darker than Std'!$B$35=\"\",\"\",'Comp Test for Darker than Std'!$B$35)","v":"BATCH 2 - Washed"},{"$f":"IF('Comp Test for Darker than Std'!$H$36=\"\",\"\",'Comp Test for Darker than Std'!$H$36)","v":"Load"},{"$f":"IF('Comp Test for Darker than Std'!$H$37=\"\",\"\",'Comp Test for Darker than Std'!$H$37)","v":""},{"$f":"IF('Comp Test for Darker than Std'!$B$36=\"\",\"\",'Comp Test for Darker than Std'!$B$36)","v":"Sample"},{"$f":"IF('Comp Test for Darker than Std'!$B$38=\"\",\"\",'Comp Test for Darker than Std'!$B$38)","v":1}]
[60,{"$f":"IF('Comp Test for Darker than Std'!$I$38=\"\",\"\",'Comp Test for Darker than Std'!$I$38)","v":0},{"$f":"IF('Comp Test for Darker than Std'!$B$5=\"\",\"\",'Comp Test for Darker than Std'!$B$5)","v":"AASHTO T 71"},{"$f":"IF('Comp Test for Darker than Std'!$B$35=\"\",\"\",'Comp Test for Darker than Std'!$B$35)","v":"BATCH 2 - Washed"},{"$f":"IF('Comp Test for Darker than Std'!$I$36=\"\",\"\",'Comp Test for Darker than Std'!$I$36)","v":"Compressive Strength"},{"$f":"IF('Comp Test for Darker than Std'!$I$37=\"\",\"\",'Comp Test for Darker than Std'!$I$37)","v":""},{"$f":"IF('Comp Test for Darker than Std'!$B$36=\"\",\"\",'Comp Test for Darker than Std'!$B$36)","v":"Sample"},{"$f":"IF('Comp Test for Darker than Std'!$B$38=\"\",\"\",'Comp Test for Darker than Std'!$B$38)","v":1}]
[61,{"$f":"IF('Comp Test for Darker than Std'!$C$39=\"\",\"\",'Comp Test for Darker than Std'!$C$39)","v":""},{"$f":"IF('Comp Test for Darker than Std'!$B$5=\"\",\"\",'Comp Test for Darker than Std'!$B$5)","v":"AASHTO T 71"},{"$f":"IF('Comp Test for Darker than Std'!$B$35=\"\",\"\",'Comp Test for Darker than Std'!$B$35)","v":"BATCH 2 - Washed"},{"$f":"IF('Comp Test for Darker than Std'!$C$36=\"\",\"\",'Comp Test for Darker than Std'!$C$36)","v":"Sample Number"},{"$f":"IF('Comp Test for Darker than Std'!$B$36=\"\",\"\",'Comp Test for Darker than Std'!$B$36)","v":"Sample"},{"$f":"IF('Comp Test for Darker than Std'!$B$39=\"\",\"\",'Comp Test for Darker than Std'!$B$39)","v":2}]
[62,{"$f":"IF('Comp Test for Darker than Std'!$D$39=\"\",\"\",'Comp Test for Darker than Std'!$D$39)","v":""},{"$f":"IF('Comp Test for Darker than Std'!$B$5=\"\",\"\",'Comp Test for Darker than Std'!$B$5)","v":"AASHTO T 71"},{"$f":"IF('Comp Test for Darker than Std'!$B$35=\"\",\"\",'Comp Test for Darker than Std'!$B$35)","v":"BATCH 2 - Washed"},{"$f":"IF('Comp Test for Darker than Std'!$D$36=\"\",\"\",'Comp Test for Darker than Std'!$D$36)","v":"Age"},{"$f":"IF('Comp Test for Darker than Std'!$B$36=\"\",\"\",'Comp Test for Darker than Std'!$B$36)","v":"Sample"},{"$f":"IF('Comp Test for Darker than Std'!$B$39=\"\",\"\",'Comp Test for Darker than Std'!$B$39)","v":2}]
[63,{"$f":"IF('Comp Test for Darker than Std'!$E$39=\"\",\"\",'Comp Test for Darker than Std'!$E$39)","v":""},{"$f":"IF('Comp Test for Darker than Std'!$B$5=\"\",\"\",'Comp Test for Darker than Std'!$B$5)","v":"AASHTO T 71"},{"$f":"IF('Comp Test for Darker than Std'!$B$35=\"\",\"\",'Comp Test for Darker than Std'!$B$35)","v":"BATCH 2 - Washed"},{"$f":"IF('Comp Test for Darker than Std'!$E$36=\"\",\"\",'Comp Test for Darker than Std'!$E$36)","v":"Length"},{"$f":"IF('Comp Test for Darker than Std'!$E$37=\"\",\"\",'Comp Test for Darker than Std'!$E$37)","v":""},{"$f":"IF('Comp Test for Darker than Std'!$B$36=\"\",\"\",'Comp Test for Darker than Std'!$B$36)","v":"Sample"},{"$f":"IF('Comp Test for Darker than Std'!$B$39=\"\",\"\",'Comp Test for Darker than Std'!$B$39)","v":2}]
[64,{"$f":"IF('Comp Test for Darker than Std'!$F$39=\"\",\"\",'Comp Test for Darker than Std'!$F$39)","v":""},{"$f":"IF('Comp Test for Darker than Std'!$B$5=\"\",\"\",'Comp Test for Darker than Std'!$B$5)","v":"AASHTO T 71"},{"$f":"IF('Comp Test for Darker than Std'!$B$35=\"\",\"\",'Comp Test for Darker than Std'!$B$35)","v":"BATCH 2 - Washed"},{"$f":"IF('Comp Test for Darker than Std'!$F$36=\"\",\"\",'Comp Test for Darker than Std'!$F$36)","v":"Width"},{"$f":"IF('Comp Test for Darker than Std'!$F$37=\"\",\"\",'Comp Test for Darker than Std'!$F$37)","v":""},{"$f":"IF('Comp Test for Darker than Std'!$B$36=\"\",\"\",'Comp Test for Darker than Std'!$B$36)","v":"Sample"},{"$f":"IF('Comp Test for Darker than Std'!$B$39=\"\",\"\",'Comp Test for Darker than Std'!$B$39)","v":2}]
[65,{"$f":"IF('Comp Test for Darker than Std'!$G$39=\"\",\"\",'Comp Test for Darker than Std'!$G$39)","v":0},{"$f":"IF('Comp Test for Darker than Std'!$B$5=\"\",\"\",'Comp Test for Darker than Std'!$B$5)","v":"AASHTO T 71"},{"$f":"IF('Comp Test for Darker than Std'!$B$35=\"\",\"\",'Comp Test for Darker than Std'!$B$35)","v":"BATCH 2 - Washed"},{"$f":"IF('Comp Test for Darker than Std'!$G$36=\"\",\"\",'Comp Test for Darker than Std'!$G$36)","v":"Area"},{"$f":"IF('Comp Test for Darker than Std'!$G$37=\"\",\"\",'Comp Test for Darker than Std'!$G$37)","v":""},{"$f":"IF('Comp Test for Darker than Std'!$B$36=\"\",\"\",'Comp Test for Darker than Std'!$B$36)","v":"Sample"},{"$f":"IF('Comp Test for Darker than Std'!$B$39=\"\",\"\",'Comp Test for Darker than Std'!$B$39)","v":2}]
[66,{"$f":"IF('Comp Test for Darker than Std'!$H$39=\"\",\"\",'Comp Test for Darker than Std'!$H$39)","v":""},{"$f":"IF('Comp Test for Darker than Std'!$B$5=\"\",\"\",'Comp Test for Darker than Std'!$B$5)","v":"AASHTO T 71"},{"$f":"IF('Comp Test for Darker than Std'!$B$35=\"\",\"\",'Comp Test for Darker than Std'!$B$35)","v":"BATCH 2 - Washed"},{"$f":"IF('Comp Test for Darker than Std'!$H$36=\"\",\"\",'Comp Test for Darker than Std'!$H$36)","v":"Load"},{"$f":"IF('Comp Test for Darker than Std'!$H$37=\"\",\"\",'Comp Test for Darker than Std'!$H$37)","v":""},{"$f":"IF('Comp Test for Darker than Std'!$B$36=\"\",\"\",'Comp Test for Darker than Std'!$B$36)","v":"Sample"},{"$f":"IF('Comp Test for Darker than Std'!$B$39=\"\",\"\",'Comp Test for Darker than Std'!$B$39)","v":2}]
[67,{"$f":"IF('Comp Test for Darker than Std'!$I$39=\"\",\"\",'Comp Test for Darker than Std'!$I$39)","v":0},{"$f":"IF('Comp Test for Darker than Std'!$B$5=\"\",\"\",'Comp Test for Darker than Std'!$B$5)","v":"AASHTO T 71"},{"$f":"IF('Comp Test for Darker than Std'!$B$35=\"\",\"\",'Comp Test for Darker than Std'!$B$35)","v":"BATCH 2 - Washed"},{"$f":"IF('Comp Test for Darker than Std'!$I$36=\"\",\"\",'Comp Test for Darker than Std'!$I$36)","v":"Compressive Strength"},{"$f":"IF('Comp Test for Darker than Std'!$I$37=\"\",\"\",'Comp Test for Darker than Std'!$I$37)","v":""},{"$f":"IF('Comp Test for Darker than Std'!$B$36=\"\",\"\",'Comp Test for Darker than Std'!$B$36)","v":"Sample"},{"$f":"IF('Comp Test for Darker than Std'!$B$39=\"\",\"\",'Comp Test for Darker than Std'!$B$39)","v":2}]
[68,{"$f":"IF('Comp Test for Darker than Std'!$C$40=\"\",\"\",'Comp Test for Darker than Std'!$C$40)","v":""},{"$f":"IF('Comp Test for Darker than Std'!$B$5=\"\",\"\",'Comp Test for Darker than Std'!$B$5)","v":"AASHTO T 71"},{"$f":"IF('Comp Test for Darker than Std'!$B$35=\"\",\"\",'Comp Test for Darker than Std'!$B$35)","v":"BATCH 2 - Washed"},{"$f":"IF('Comp Test for Darker than Std'!$C$36=\"\",\"\",'Comp Test for Darker than Std'!$C$36)","v":"Sample Number"},{"$f":"IF('Comp Test for Darker than Std'!$B$36=\"\",\"\",'Comp Test for Darker than Std'!$B$36)","v":"Sample"},{"$f":"IF('Comp Test for Darker than Std'!$B$40=\"\",\"\",'Comp Test for Darker than Std'!$B$40)","v":3}]
[69,{"$f":"IF('Comp Test for Darker than Std'!$D$40=\"\",\"\",'Comp Test for Darker than Std'!$D$40)","v":""},{"$f":"IF('Comp Test for Darker than Std'!$B$5=\"\",\"\",'Comp Test for Darker than Std'!$B$5)","v":"AASHTO T 71"},{"$f":"IF('Comp Test for Darker than Std'!$B$35=\"\",\"\",'Comp Test for Darker than Std'!$B$35)","v":"BATCH 2 - Washed"},{"$f":"IF('Comp Test for Darker than Std'!$D$36=\"\",\"\",'Comp Test for Darker than Std'!$D$36)","v":"Age"},{"$f":"IF('Comp Test for Darker than Std'!$B$36=\"\",\"\",'Comp Test for Darker than Std'!$B$36)","v":"Sample"},{"$f":"IF('Comp Test for Darker than Std'!$B$40=\"\",\"\",'Comp Test for Darker than Std'!$B$40)","v":3}]
[70,{"$f":"IF('Comp Test for Darker than Std'!$E$40=\"\",\"\",'Comp Test for Darker than Std'!$E$40)","v":""},{"$f":"IF('Comp Test for Darker than Std'!$B$5=\"\",\"\",'Comp Test for Darker than Std'!$B$5)","v":"AASHTO T 71"},{"$f":"IF('Comp Test for Darker than Std'!$B$35=\"\",\"\",'Comp Test for Darker than Std'!$B$35)","v":"BATCH 2 - Washed"},{"$f":"IF('Comp Test for Darker than Std'!$E$36=\"\",\"\",'Comp Test for Darker than Std'!$E$36)","v":"Length"},{"$f":"IF('Comp Test for Darker than Std'!$E$37=\"\",\"\",'Comp Test for Darker than Std'!$E$37)","v":""},{"$f":"IF('Comp Test for Darker than Std'!$B$36=\"\",\"\",'Comp Test for Darker than Std'!$B$36)","v":"Sample"},{"$f":"IF('Comp Test for Darker than Std'!$B$40=\"\",\"\",'Comp Test for Darker than Std'!$B$40)","v":3}]
[71,{"$f":"IF('Comp Test for Darker than Std'!$F$40=\"\",\"\",'Comp Test for Darker than Std'!$F$40)","v":""},{"$f":"IF('Comp Test for Darker than Std'!$B$5=\"\",\"\",'Comp Test for Darker than Std'!$B$5)","v":"AASHTO T 71"},{"$f":"IF('Comp Test for Darker than Std'!$B$35=\"\",\"\",'Comp Test for Darker than Std'!$B$35)","v":"BATCH 2 - Washed"},{"$f":"IF('Comp Test for Darker than Std'!$F$36=\"\",\"\",'Comp Test for Darker than Std'!$F$36)","v":"Width"},{"$f":"IF('Comp Test for Darker than Std'!$F$37=\"\",\"\",'Comp Test for Darker than Std'!$F$37)","v":""},{"$f":"IF('Comp Test for Darker than Std'!$B$36=\"\",\"\",'Comp Test for Darker than Std'!$B$36)","v":"Sample"},{"$f":"IF('Comp Test for Darker than Std'!$B$40=\"\",\"\",'Comp Test for Darker than Std'!$B$40)","v":3}]
[72,{"$f":"IF('Comp Test for Darker than Std'!$G$40=\"\",\"\",'Comp Test for Darker than Std'!$G$40)","v":0},{"$f":"IF('Comp Test for Darker than Std'!$B$5=\"\",\"\",'Comp Test for Darker than Std'!$B$5)","v":"AASHTO T 71"},{"$f":"IF('Comp Test for Darker than Std'!$B$35=\"\",\"\",'Comp Test for Darker than Std'!$B$35)","v":"BATCH 2 - Washed"},{"$f":"IF('Comp Test for Darker than Std'!$G$36=\"\",\"\",'Comp Test for Darker than Std'!$G$36)","v":"Area"},{"$f":"IF('Comp Test for Darker than Std'!$G$37=\"\",\"\",'Comp Test for Darker than Std'!$G$37)","v":""},{"$f":"IF('Comp Test for Darker than Std'!$B$36=\"\",\"\",'Comp Test for Darker than Std'!$B$36)","v":"Sample"},{"$f":"IF('Comp Test for Darker than Std'!$B$40=\"\",\"\",'Comp Test for Darker than Std'!$B$40)","v":3}]
[73,{"$f":"IF('Comp Test for Darker than Std'!$H$40=\"\",\"\",'Comp Test for Darker than Std'!$H$40)","v":""},{"$f":"IF('Comp Test for Darker than Std'!$B$5=\"\",\"\",'Comp Test for Darker than Std'!$B$5)","v":"AASHTO T 71"},{"$f":"IF('Comp Test for Darker than Std'!$B$35=\"\",\"\",'Comp Test for Darker than Std'!$B$35)","v":"BATCH 2 - Washed"},{"$f":"IF('Comp Test for Darker than Std'!$H$36=\"\",\"\",'Comp Test for Darker than Std'!$H$36)","v":"Load"},{"$f":"IF('Comp Test for Darker than Std'!$H$37=\"\",\"\",'Comp Test for Darker than Std'!$H$37)","v":""},{"$f":"IF('Comp Test for Darker than Std'!$B$36=\"\",\"\",'Comp Test for Darker than Std'!$B$36)","v":"Sample"},{"$f":"IF('Comp Test for Darker than Std'!$B$40=\"\",\"\",'Comp Test for Darker than Std'!$B$40)","v":3}]
[74,{"$f":"IF('Comp Test for Darker than Std'!$I$40=\"\",\"\",'Comp Test for Darker than Std'!$I$40)","v":0},{"$f":"IF('Comp Test for Darker than Std'!$B$5=\"\",\"\",'Comp Test for Darker than Std'!$B$5)","v":"AASHTO T 71"},{"$f":"IF('Comp Test for Darker than Std'!$B$35=\"\",\"\",'Comp Test for Darker than Std'!$B$35)","v":"BATCH 2 - Washed"},{"$f":"IF('Comp Test for Darker than Std'!$I$36=\"\",\"\",'Comp Test for Darker than Std'!$I$36)","v":"Compressive Strength"},{"$f":"IF('Comp Test for Darker than Std'!$I$37=\"\",\"\",'Comp Test for Darker than Std'!$I$37)","v":""},{"$f":"IF('Comp Test for Darker than Std'!$B$36=\"\",\"\",'Comp Test for Darker than Std'!$B$36)","v":"Sample"},{"$f":"IF('Comp Test for Darker than Std'!$B$40=\"\",\"\",'Comp Test for Darker than Std'!$B$40)","v":3}]
[75,{"$f":"IF('Comp Test for Darker than Std'!$I$41=\"\",\"\",'Comp Test for Darker than Std'!$I$41)","v":0},{"$f":"IF('Comp Test for Darker than Std'!$B$5=\"\",\"\",'Comp Test for Darker than Std'!$B$5)","v":"AASHTO T 71"},{"$f":"IF('Comp Test for Darker than Std'!$B$35=\"\",\"\",'Comp Test for Darker than Std'!$B$35)","v":"BATCH 2 - Washed"},{"$f":"IF('Comp Test for Darker than Std'!$I$36=\"\",\"\",'Comp Test for Darker than Std'!$I$36)","v":"Compressive Strength"},{"$f":"IF('Comp Test for Darker than Std'!$I$37=\"\",\"\",'Comp Test for Darker than Std'!$I$37)","v":""},{"$f":"IF('Comp Test for Darker than Std'!$G$41=\"\",\"\",'Comp Test for Darker than Std'!$G$41)","v":"Average Strength:"}]
[76,{"$f":"IF('Comp Test for Darker than Std'!$C$45=\"\",\"\",'Comp Test for Darker than Std'!$C$45)","v":""},{"$f":"IF('Comp Test for Darker than Std'!$B$5=\"\",\"\",'Comp Test for Darker than Std'!$B$5)","v":"AASHTO T 71"},{"$f":"IF('Comp Test for Darker than Std'!$B$42=\"\",\"\",'Comp Test for Darker than Std'!$B$42)","v":"BATCH 2 - Unwashed"},{"$f":"IF('Comp Test for Darker than Std'!$C$43=\"\",\"\",'Comp Test for Darker than Std'!$C$43)","v":"Sample Number"},{"$f":"IF('Comp Test for Darker than Std'!$B$43=\"\",\"\",'Comp Test for Darker than Std'!$B$43)","v":"Sample"},{"$f":"IF('Comp Test for Darker than Std'!$B$45=\"\",\"\",'Comp Test for Darker than Std'!$B$45)","v":1}]
[77,{"$f":"IF('Comp Test for Darker than Std'!$D$45=\"\",\"\",'Comp Test for Darker than Std'!$D$45)","v":""},{"$f":"IF('Comp Test for Darker than Std'!$B$5=\"\",\"\",'Comp Test for Darker than Std'!$B$5)","v":"AASHTO T 71"},{"$f":"IF('Comp Test for Darker than Std'!$B$42=\"\",\"\",'Comp Test for Darker than Std'!$B$42)","v":"BATCH 2 - Unwashed"},{"$f":"IF('Comp Test for Darker than Std'!$D$43=\"\",\"\",'Comp Test for Darker than Std'!$D$43)","v":"Age"},{"$f":"IF('Comp Test for Darker than Std'!$B$43=\"\",\"\",'Comp Test for Darker than Std'!$B$43)","v":"Sample"},{"$f":"IF('Comp Test for Darker than Std'!$B$45=\"\",\"\",'Comp Test for Darker than Std'!$B$45)","v":1}]
[78,{"$f":"IF('Comp Test for Darker than Std'!$E$45=\"\",\"\",'Comp Test for Darker than Std'!$E$45)","v":""},{"$f":"IF('Comp Test for Darker than Std'!$B$5=\"\",\"\",'Comp Test for Darker than Std'!$B$5)","v":"AASHTO T 71"},{"$f":"IF('Comp Test for Darker than Std'!$B$42=\"\",\"\",'Comp Test for Darker than Std'!$B$42)","v":"BATCH 2 - Unwashed"},{"$f":"IF('Comp Test for Darker than Std'!$E$43=\"\",\"\",'Comp Test for Darker than Std'!$E$43)","v":"Length"},{"$f":"IF('Comp Test for Darker than Std'!$E$44=\"\",\"\",'Comp Test for Darker than Std'!$E$44)","v":""},{"$f":"IF('Comp Test for Darker than Std'!$B$43=\"\",\"\",'Comp Test for Darker than Std'!$B$43)","v":"Sample"},{"$f":"IF('Comp Test for Darker than Std'!$B$45=\"\",\"\",'Comp Test for Darker than Std'!$B$45)","v":1}]
[79,{"$f":"IF('Comp Test for Darker than Std'!$F$45=\"\",\"\",'Comp Test for Darker than Std'!$F$45)","v":""},{"$f":"IF('Comp Test for Darker than Std'!$B$5=\"\",\"\",'Comp Test for Darker than Std'!$B$5)","v":"AASHTO T 71"},{"$f":"IF('Comp Test for Darker than Std'!$B$42=\"\",\"\",'Comp Test for Darker than Std'!$B$42)","v":"BATCH 2 - Unwashed"},{"$f":"IF('Comp Test for Darker than Std'!$F$43=\"\",\"\",'Comp Test for Darker than Std'!$F$43)","v":"Width"},{"$f":"IF('Comp Test for Darker than Std'!$F$44=\"\",\"\",'Comp Test for Darker than Std'!$F$44)","v":""},{"$f":"IF('Comp Test for Darker than Std'!$B$43=\"\",\"\",'Comp Test for Darker than Std'!$B$43)","v":"Sample"},{"$f":"IF('Comp Test for Darker than Std'!$B$45=\"\",\"\",'Comp Test for Darker than Std'!$B$45)","v":1}]
[80,{"$f":"IF('Comp Test for Darker than Std'!$G$45=\"\",\"\",'Comp Test for Darker than Std'!$G$45)","v":0},{"$f":"IF('Comp Test for Darker than Std'!$B$5=\"\",\"\",'Comp Test for Darker than Std'!$B$5)","v":"AASHTO T 71"},{"$f":"IF('Comp Test for Darker than Std'!$B$42=\"\",\"\",'Comp Test for Darker than Std'!$B$42)","v":"BATCH 2 - Unwashed"},{"$f":"IF('Comp Test for Darker than Std'!$G$43=\"\",\"\",'Comp Test for Darker than Std'!$G$43)","v":"Area"},{"$f":"IF('Comp Test for Darker than Std'!$G$44=\"\",\"\",'Comp Test for Darker than Std'!$G$44)","v":""},{"$f":"IF('Comp Test for Darker than Std'!$B$43=\"\",\"\",'Comp Test for Darker than Std'!$B$43)","v":"Sample"},{"$f":"IF('Comp Test for Darker than Std'!$B$45=\"\",\"\",'Comp Test for Darker than Std'!$B$45)","v":1}]
[81,{"$f":"IF('Comp Test for Darker than Std'!$H$45=\"\",\"\",'Comp Test for Darker than Std'!$H$45)","v":""},{"$f":"IF('Comp Test for Darker than Std'!$B$5=\"\",\"\",'Comp Test for Darker than Std'!$B$5)","v":"AASHTO T 71"},{"$f":"IF('Comp Test for Darker than Std'!$B$42=\"\",\"\",'Comp Test for Darker than Std'!$B$42)","v":"BATCH 2 - Unwashed"},{"$f":"IF('Comp Test for Darker than Std'!$H$43=\"\",\"\",'Comp Test for Darker than Std'!$H$43)","v":"Load"},{"$f":"IF('Comp Test for Darker than Std'!$H$44=\"\",\"\",'Comp Test for Darker than Std'!$H$44)","v":""},{"$f":"IF('Comp Test for Darker than Std'!$B$43=\"\",\"\",'Comp Test for Darker than Std'!$B$43)","v":"Sample"},{"$f":"IF('Comp Test for Darker than Std'!$B$45=\"\",\"\",'Comp Test for Darker than Std'!$B$45)","v":1}]
[82,{"$f":"IF('Comp Test for Darker than Std'!$I$45=\"\",\"\",'Comp Test for Darker than Std'!$I$45)","v":0},{"$f":"IF('Comp Test for Darker than Std'!$B$5=\"\",\"\",'Comp Test for Darker than Std'!$B$5)","v":"AASHTO T 71"},{"$f":"IF('Comp Test for Darker than Std'!$B$42=\"\",\"\",'Comp Test for Darker than Std'!$B$42)","v":"BATCH 2 - Unwashed"},{"$f":"IF('Comp Test for Darker than Std'!$I$43=\"\",\"\",'Comp Test for Darker than Std'!$I$43)","v":"Compressive Strength"},{"$f":"IF('Comp Test for Darker than Std'!$I$44=\"\",\"\",'Comp Test for Darker than Std'!$I$44)","v":""},{"$f":"IF('Comp Test for Darker than Std'!$B$43=\"\",\"\",'Comp Test for Darker than Std'!$B$43)","v":"Sample"},{"$f":"IF('Comp Test for Darker than Std'!$B$45=\"\",\"\",'Comp Test for Darker than Std'!$B$45)","v":1}]
[83,{"$f":"IF('Comp Test for Darker than Std'!$C$46=\"\",\"\",'Comp Test for Darker than Std'!$C$46)","v":""},{"$f":"IF('Comp Test for Darker than Std'!$B$5=\"\",\"\",'Comp Test for Darker than Std'!$B$5)","v":"AASHTO T 71"},{"$f":"IF('Comp Test for Darker than Std'!$B$42=\"\",\"\",'Comp Test for Darker than Std'!$B$42)","v":"BATCH 2 - Unwashed"},{"$f":"IF('Comp Test for Darker than Std'!$C$43=\"\",\"\",'Comp Test for Darker than Std'!$C$43)","v":"Sample Number"},{"$f":"IF('Comp Test for Darker than Std'!$B$43=\"\",\"\",'Comp Test for Darker than Std'!$B$43)","v":"Sample"},{"$f":"IF('Comp Test for Darker than Std'!$B$46=\"\",\"\",'Comp Test for Darker than Std'!$B$46)","v":2}]
[84,{"$f":"IF('Comp Test for Darker than Std'!$D$46=\"\",\"\",'Comp Test for Darker than Std'!$D$46)","v":""},{"$f":"IF('Comp Test for Darker than Std'!$B$5=\"\",\"\",'Comp Test for Darker than Std'!$B$5)","v":"AASHTO T 71"},{"$f":"IF('Comp Test for Darker than Std'!$B$42=\"\",\"\",'Comp Test for Darker than Std'!$B$42)","v":"BATCH 2 - Unwashed"},{"$f":"IF('Comp Test for Darker than Std'!$D$43=\"\",\"\",'Comp Test for Darker than Std'!$D$43)","v":"Age"},{"$f":"IF('Comp Test for Darker than Std'!$B$43=\"\",\"\",'Comp Test for Darker than Std'!$B$43)","v":"Sample"},{"$f":"IF('Comp Test for Darker than Std'!$B$46=\"\",\"\",'Comp Test for Darker than Std'!$B$46)","v":2}]
[85,{"$f":"IF('Comp Test for Darker than Std'!$E$46=\"\",\"\",'Comp Test for Darker than Std'!$E$46)","v":""},{"$f":"IF('Comp Test for Darker than Std'!$B$5=\"\",\"\",'Comp Test for Darker than Std'!$B$5)","v":"AASHTO T 71"},{"$f":"IF('Comp Test for Darker than Std'!$B$42=\"\",\"\",'Comp Test for Darker than Std'!$B$42)","v":"BATCH 2 - Unwashed"},{"$f":"IF('Comp Test for Darker than Std'!$E$43=\"\",\"\",'Comp Test for Darker than Std'!$E$43)","v":"Length"},{"$f":"IF('Comp Test for Darker than Std'!$E$44=\"\",\"\",'Comp Test for Darker than Std'!$E$44)","v":""},{"$f":"IF('Comp Test for Darker than Std'!$B$43=\"\",\"\",'Comp Test for Darker than Std'!$B$43)","v":"Sample"},{"$f":"IF('Comp Test for Darker than Std'!$B$46=\"\",\"\",'Comp Test for Darker than Std'!$B$46)","v":2}]
[86,{"$f":"IF('Comp Test for Darker than Std'!$F$46=\"\",\"\",'Comp Test for Darker than Std'!$F$46)","v":""},{"$f":"IF('Comp Test for Darker than Std'!$B$5=\"\",\"\",'Comp Test for Darker than Std'!$B$5)","v":"AASHTO T 71"},{"$f":"IF('Comp Test for Darker than Std'!$B$42=\"\",\"\",'Comp Test for Darker than Std'!$B$42)","v":"BATCH 2 - Unwashed"},{"$f":"IF('Comp Test for Darker than Std'!$F$43=\"\",\"\",'Comp Test for Darker than Std'!$F$43)","v":"Width"},{"$f":"IF('Comp Test for Darker than Std'!$F$44=\"\",\"\",'Comp Test for Darker than Std'!$F$44)","v":""},{"$f":"IF('Comp Test for Darker than Std'!$B$43=\"\",\"\",'Comp Test for Darker than Std'!$B$43)","v":"Sample"},{"$f":"IF('Comp Test for Darker than Std'!$B$46=\"\",\"\",'Comp Test for Darker than Std'!$B$46)","v":2}]
[87,{"$f":"IF('Comp Test for Darker than Std'!$G$46=\"\",\"\",'Comp Test for Darker than Std'!$G$46)","v":0},{"$f":"IF('Comp Test for Darker than Std'!$B$5=\"\",\"\",'Comp Test for Darker than Std'!$B$5)","v":"AASHTO T 71"},{"$f":"IF('Comp Test for Darker than Std'!$B$42=\"\",\"\",'Comp Test for Darker than Std'!$B$42)","v":"BATCH 2 - Unwashed"},{"$f":"IF('Comp Test for Darker than Std'!$G$43=\"\",\"\",'Comp Test for Darker than Std'!$G$43)","v":"Area"},{"$f":"IF('Comp Test for Darker than Std'!$G$44=\"\",\"\",'Comp Test for Darker than Std'!$G$44)","v":""},{"$f":"IF('Comp Test for Darker than Std'!$B$43=\"\",\"\",'Comp Test for Darker than Std'!$B$43)","v":"Sample"},{"$f":"IF('Comp Test for Darker than Std'!$B$46=\"\",\"\",'Comp Test for Darker than Std'!$B$46)","v":2}]
[88,{"$f":"IF('Comp Test for Darker than Std'!$H$46=\"\",\"\",'Comp Test for Darker than Std'!$H$46)","v":""},{"$f":"IF('Comp Test for Darker than Std'!$B$5=\"\",\"\",'Comp Test for Darker than Std'!$B$5)","v":"AASHTO T 71"},{"$f":"IF('Comp Test for Darker than Std'!$B$42=\"\",\"\",'Comp Test for Darker than Std'!$B$42)","v":"BATCH 2 - Unwashed"},{"$f":"IF('Comp Test for Darker than Std'!$H$43=\"\",\"\",'Comp Test for Darker than Std'!$H$43)","v":"Load"},{"$f":"IF('Comp Test for Darker than Std'!$H$44=\"\",\"\",'Comp Test for Darker than Std'!$H$44)","v":""},{"$f":"IF('Comp Test for Darker than Std'!$B$43=\"\",\"\",'Comp Test for Darker than Std'!$B$43)","v":"Sample"},{"$f":"IF('Comp Test for Darker than Std'!$B$46=\"\",\"\",'Comp Test for Darker than Std'!$B$46)","v":2}]
[89,{"$f":"IF('Comp Test for Darker than Std'!$I$46=\"\",\"\",'Comp Test for Darker than Std'!$I$46)","v":0},{"$f":"IF('Comp Test for Darker than Std'!$B$5=\"\",\"\",'Comp Test for Darker than Std'!$B$5)","v":"AASHTO T 71"},{"$f":"IF('Comp Test for Darker than Std'!$B$42=\"\",\"\",'Comp Test for Darker than Std'!$B$42)","v":"BATCH 2 - Unwashed"},{"$f":"IF('Comp Test for Darker than Std'!$I$43=\"\",\"\",'Comp Test for Darker than Std'!$I$43)","v":"Compressive Strength"},{"$f":"IF('Comp Test for Darker than Std'!$I$44=\"\",\"\",'Comp Test for Darker than Std'!$I$44)","v":""},{"$f":"IF('Comp Test for Darker than Std'!$B$43=\"\",\"\",'Comp Test for Darker than Std'!$B$43)","v":"Sample"},{"$f":"IF('Comp Test for Darker than Std'!$B$46=\"\",\"\",'Comp Test for Darker than Std'!$B$46)","v":2}]
[90,{"$f":"IF('Comp Test for Darker than Std'!$C$47=\"\",\"\",'Comp Test for Darker than Std'!$C$47)","v":""},{"$f":"IF('Comp Test for Darker than Std'!$B$5=\"\",\"\",'Comp Test for Darker than Std'!$B$5)","v":"AASHTO T 71"},{"$f":"IF('Comp Test for Darker than Std'!$B$42=\"\",\"\",'Comp Test for Darker than Std'!$B$42)","v":"BATCH 2 - Unwashed"},{"$f":"IF('Comp Test for Darker than Std'!$C$43=\"\",\"\",'Comp Test for Darker than Std'!$C$43)","v":"Sample Number"},{"$f":"IF('Comp Test for Darker than Std'!$B$43=\"\",\"\",'Comp Test for Darker than Std'!$B$43)","v":"Sample"},{"$f":"IF('Comp Test for Darker than Std'!$B$47=\"\",\"\",'Comp Test for Darker than Std'!$B$47)","v":3}]
[91,{"$f":"IF('Comp Test for Darker than Std'!$D$47=\"\",\"\",'Comp Test for Darker than Std'!$D$47)","v":""},{"$f":"IF('Comp Test for Darker than Std'!$B$5=\"\",\"\",'Comp Test for Darker than Std'!$B$5)","v":"AASHTO T 71"},{"$f":"IF('Comp Test for Darker than Std'!$B$42=\"\",\"\",'Comp Test for Darker than Std'!$B$42)","v":"BATCH 2 - Unwashed"},{"$f":"IF('Comp Test for Darker than Std'!$D$43=\"\",\"\",'Comp Test for Darker than Std'!$D$43)","v":"Age"},{"$f":"IF('Comp Test for Darker than Std'!$B$43=\"\",\"\",'Comp Test for Darker than Std'!$B$43)","v":"Sample"},{"$f":"IF('Comp Test for Darker than Std'!$B$47=\"\",\"\",'Comp Test for Darker than Std'!$B$47)","v":3}]
[92,{"$f":"IF('Comp Test for Darker than Std'!$E$47=\"\",\"\",'Comp Test for Darker than Std'!$E$47)","v":""},{"$f":"IF('Comp Test for Darker than Std'!$B$5=\"\",\"\",'Comp Test for Darker than Std'!$B$5)","v":"AASHTO T 71"},{"$f":"IF('Comp Test for Darker than Std'!$B$42=\"\",\"\",'Comp Test for Darker than Std'!$B$42)","v":"BATCH 2 - Unwashed"},{"$f":"IF('Comp Test for Darker than Std'!$E$43=\"\",\"\",'Comp Test for Darker than Std'!$E$43)","v":"Length"},{"$f":"IF('Comp Test for Darker than Std'!$E$44=\"\",\"\",'Comp Test for Darker than Std'!$E$44)","v":""},{"$f":"IF('Comp Test for Darker than Std'!$B$43=\"\",\"\",'Comp Test for Darker than Std'!$B$43)","v":"Sample"},{"$f":"IF('Comp Test for Darker than Std'!$B$47=\"\",\"\",'Comp Test for Darker than Std'!$B$47)","v":3}]
[93,{"$f":"IF('Comp Test for Darker than Std'!$F$47=\"\",\"\",'Comp Test for Darker than Std'!$F$47)","v":""},{"$f":"IF('Comp Test for Darker than Std'!$B$5=\"\",\"\",'Comp Test for Darker than Std'!$B$5)","v":"AASHTO T 71"},{"$f":"IF('Comp Test for Darker than Std'!$B$42=\"\",\"\",'Comp Test for Darker than Std'!$B$42)","v":"BATCH 2 - Unwashed"},{"$f":"IF('Comp Test for Darker than Std'!$F$43=\"\",\"\",'Comp Test for Darker than Std'!$F$43)","v":"Width"},{"$f":"IF('Comp Test for Darker than Std'!$F$44=\"\",\"\",'Comp Test for Darker than Std'!$F$44)","v":""},{"$f":"IF('Comp Test for Darker than Std'!$B$43=\"\",\"\",'Comp Test for Darker than Std'!$B$43)","v":"Sample"},{"$f":"IF('Comp Test for Darker than Std'!$B$47=\"\",\"\",'Comp Test for Darker than Std'!$B$47)","v":3}]
[94,{"$f":"IF('Comp Test for Darker than Std'!$G$47=\"\",\"\",'Comp Test for Darker than Std'!$G$47)","v":0},{"$f":"IF('Comp Test for Darker than Std'!$B$5=\"\",\"\",'Comp Test for Darker than Std'!$B$5)","v":"AASHTO T 71"},{"$f":"IF('Comp Test for Darker than Std'!$B$42=\"\",\"\",'Comp Test for Darker than Std'!$B$42)","v":"BATCH 2 - Unwashed"},{"$f":"IF('Comp Test for Darker than Std'!$G$43=\"\",\"\",'Comp Test for Darker than Std'!$G$43)","v":"Area"},{"$f":"IF('Comp Test for Darker than Std'!$G$44=\"\",\"\",'Comp Test for Darker than Std'!$G$44)","v":""},{"$f":"IF('Comp Test for Darker than Std'!$B$43=\"\",\"\",'Comp Test for Darker than Std'!$B$43)","v":"Sample"},{"$f":"IF('Comp Test for Darker than Std'!$B$47=\"\",\"\",'Comp Test for Darker than Std'!$B$47)","v":3}]
[95,{"$f":"IF('Comp Test for Darker than Std'!$H$47=\"\",\"\",'Comp Test for Darker than Std'!$H$47)","v":""},{"$f":"IF('Comp Test for Darker than Std'!$B$5=\"\",\"\",'Comp Test for Darker than Std'!$B$5)","v":"AASHTO T 71"},{"$f":"IF('Comp Test for Darker than Std'!$B$42=\"\",\"\",'Comp Test for Darker than Std'!$B$42)","v":"BATCH 2 - Unwashed"},{"$f":"IF('Comp Test for Darker than Std'!$H$43=\"\",\"\",'Comp Test for Darker than Std'!$H$43)","v":"Load"},{"$f":"IF('Comp Test for Darker than Std'!$H$44=\"\",\"\",'Comp Test for Darker than Std'!$H$44)","v":""},{"$f":"IF('Comp Test for Darker than Std'!$B$43=\"\",\"\",'Comp Test for Darker than Std'!$B$43)","v":"Sample"},{"$f":"IF('Comp Test for Darker than Std'!$B$47=\"\",\"\",'Comp Test for Darker than Std'!$B$47)","v":3}]
[96,{"$f":"IF('Comp Test for Darker than Std'!$I$47=\"\",\"\",'Comp Test for Darker than Std'!$I$47)","v":0},{"$f":"IF('Comp Test for Darker than Std'!$B$5=\"\",\"\",'Comp Test for Darker than Std'!$B$5)","v":"AASHTO T 71"},{"$f":"IF('Comp Test for Darker than Std'!$B$42=\"\",\"\",'Comp Test for Darker than Std'!$B$42)","v":"BATCH 2 - Unwashed"},{"$f":"IF('Comp Test for Darker than Std'!$I$43=\"\",\"\",'Comp Test for Darker than Std'!$I$43)","v":"Compressive Strength"},{"$f":"IF('Comp Test for Darker than Std'!$I$44=\"\",\"\",'Comp Test for Darker than Std'!$I$44)","v":""},{"$f":"IF('Comp Test for Darker than Std'!$B$43=\"\",\"\",'Comp Test for Darker than Std'!$B$43)","v":"Sample"},{"$f":"IF('Comp Test for Darker than Std'!$B$47=\"\",\"\",'Comp Test for Darker than Std'!$B$47)","v":3}]
[97,{"$f":"IF('Comp Test for Darker than Std'!$I$48=\"\",\"\",'Comp Test for Darker than Std'!$I$48)","v":0},{"$f":"IF('Comp Test for Darker than Std'!$B$5=\"\",\"\",'Comp Test for Darker than Std'!$B$5)","v":"AASHTO T 71"},{"$f":"IF('Comp Test for Darker than Std'!$B$42=\"\",\"\",'Comp Test for Darker than Std'!$B$42)","v":"BATCH 2 - Unwashed"},{"$f":"IF('Comp Test for Darker than Std'!$I$43=\"\",\"\",'Comp Test for Darker than Std'!$I$43)","v":"Compressive Strength"},{"$f":"IF('Comp Test for Darker than Std'!$I$44=\"\",\"\",'Comp Test for Darker than Std'!$I$44)","v":""},{"$f":"IF('Comp Test for Darker than Std'!$G$48=\"\",\"\",'Comp Test for Darker than Std'!$G$48)","v":"Average Strength:"}]
[98,{"$f":"IF('Comp Test for Darker than Std'!$C$53=\"\",\"\",'Comp Test for Darker than Std'!$C$53)","v":""},{"$f":"IF('Comp Test for Darker than Std'!$B$5=\"\",\"\",'Comp Test for Darker than Std'!$B$5)","v":"AASHTO T 71"},{"$f":"IF('Comp Test for Darker than Std'!$B$50=\"\",\"\",'Comp Test for Darker than Std'!$B$50)","v":"BATCH 3 - Washed"},{"$f":"IF('Comp Test for Darker than Std'!$C$51=\"\",\"\",'Comp Test for Darker than Std'!$C$51)","v":"Sample Number"},{"$f":"IF('Comp Test for Darker than Std'!$B$51=\"\",\"\",'Comp Test for Darker than Std'!$B$51)","v":"Sample"},{"$f":"IF('Comp Test for Darker than Std'!$B$53=\"\",\"\",'Comp Test for Darker than Std'!$B$53)","v":1}]
[99,{"$f":"IF('Comp Test for Darker than Std'!$D$53=\"\",\"\",'Comp Test for Darker than Std'!$D$53)","v":""},{"$f":"IF('Comp Test for Darker than Std'!$B$5=\"\",\"\",'Comp Test for Darker than Std'!$B$5)","v":"AASHTO T 71"},{"$f":"IF('Comp Test for Darker than Std'!$B$50=\"\",\"\",'Comp Test for Darker than Std'!$B$50)","v":"BATCH 3 - Washed"},{"$f":"IF('Comp Test for Darker than Std'!$D$51=\"\",\"\",'Comp Test for Darker than Std'!$D$51)","v":"Age"},{"$f":"IF('Comp Test for Darker than Std'!$B$51=\"\",\"\",'Comp Test for Darker than Std'!$B$51)","v":"Sample"},{"$f":"IF('Comp Test for Darker than Std'!$B$53=\"\",\"\",'Comp Test for Darker than Std'!$B$53)","v":1}]
[100,{"$f":"IF('Comp Test for Darker than Std'!$E$53=\"\",\"\",'Comp Test for Darker than Std'!$E$53)","v":""},{"$f":"IF('Comp Test for Darker than Std'!$B$5=\"\",\"\",'Comp Test for Darker than Std'!$B$5)","v":"AASHTO T 71"},{"$f":"IF('Comp Test for Darker than Std'!$B$50=\"\",\"\",'Comp Test for Darker than Std'!$B$50)","v":"BATCH 3 - Washed"},{"$f":"IF('Comp Test for Darker than Std'!$E$51=\"\",\"\",'Comp Test for Darker than Std'!$E$51)","v":"Length"},{"$f":"IF('Comp Test for Darker than Std'!$E$52=\"\",\"\",'Comp Test for Darker than Std'!$E$52)","v":""},{"$f":"IF('Comp Test for Darker than Std'!$B$51=\"\",\"\",'Comp Test for Darker than Std'!$B$51)","v":"Sample"},{"$f":"IF('Comp Test for Darker than Std'!$B$53=\"\",\"\",'Comp Test for Darker than Std'!$B$53)","v":1}]
[101,{"$f":"IF('Comp Test for Darker than Std'!$F$53=\"\",\"\",'Comp Test for Darker than Std'!$F$53)","v":""},{"$f":"IF('Comp Test for Darker than Std'!$B$5=\"\",\"\",'Comp Test for Darker than Std'!$B$5)","v":"AASHTO T 71"},{"$f":"IF('Comp Test for Darker than Std'!$B$50=\"\",\"\",'Comp Test for Darker than Std'!$B$50)","v":"BATCH 3 - Washed"},{"$f":"IF('Comp Test for Darker than Std'!$F$51=\"\",\"\",'Comp Test for Darker than Std'!$F$51)","v":"Width"},{"$f":"IF('Comp Test for Darker than Std'!$F$52=\"\",\"\",'Comp Test for Darker than Std'!$F$52)","v":""},{"$f":"IF('Comp Test for Darker than Std'!$B$51=\"\",\"\",'Comp Test for Darker than Std'!$B$51)","v":"Sample"},{"$f":"IF('Comp Test for Darker than Std'!$B$53=\"\",\"\",'Comp Test for Darker than Std'!$B$53)","v":1}]
[102,{"$f":"IF('Comp Test for Darker than Std'!$G$53=\"\",\"\",'Comp Test for Darker than Std'!$G$53)","v":0},{"$f":"IF('Comp Test for Darker than Std'!$B$5=\"\",\"\",'Comp Test for Darker than Std'!$B$5)","v":"AASHTO T 71"},{"$f":"IF('Comp Test for Darker than Std'!$B$50=\"\",\"\",'Comp Test for Darker than Std'!$B$50)","v":"BATCH 3 - Washed"},{"$f":"IF('Comp Test for Darker than Std'!$G$51=\"\",\"\",'Comp Test for Darker than Std'!$G$51)","v":"Area"},{"$f":"IF('Comp Test for Darker than Std'!$G$52=\"\",\"\",'Comp Test for Darker than Std'!$G$52)","v":""},{"$f":"IF('Comp Test for Darker than Std'!$B$51=\"\",\"\",'Comp Test for Darker than Std'!$B$51)","v":"Sample"},{"$f":"IF('Comp Test for Darker than Std'!$B$53=\"\",\"\",'Comp Test for Darker than Std'!$B$53)","v":1}]
[103,{"$f":"IF('Comp Test for Darker than Std'!$H$53=\"\",\"\",'Comp Test for Darker than Std'!$H$53)","v":""},{"$f":"IF('Comp Test for Darker than Std'!$B$5=\"\",\"\",'Comp Test for Darker than Std'!$B$5)","v":"AASHTO T 71"},{"$f":"IF('Comp Test for Darker than Std'!$B$50=\"\",\"\",'Comp Test for Darker than Std'!$B$50)","v":"BATCH 3 - Washed"},{"$f":"IF('Comp Test for Darker than Std'!$H$51=\"\",\"\",'Comp Test for Darker than Std'!$H$51)","v":"Load"},{"$f":"IF('Comp Test for Darker than Std'!$H$52=\"\",\"\",'Comp Test for Darker than Std'!$H$52)","v":""},{"$f":"IF('Comp Test for Darker than Std'!$B$51=\"\",\"\",'Comp Test for Darker than Std'!$B$51)","v":"Sample"},{"$f":"IF('Comp Test for Darker than Std'!$B$53=\"\",\"\",'Comp Test for Darker than Std'!$B$53)","v":1}]
[104,{"$f":"IF('Comp Test for Darker than Std'!$I$53=\"\",\"\",'Comp Test for Darker than Std'!$I$53)","v":0},{"$f":"IF('Comp Test for Darker than Std'!$B$5=\"\",\"\",'Comp Test for Darker than Std'!$B$5)","v":"AASHTO T 71"},{"$f":"IF('Comp Test for Darker than Std'!$B$50=\"\",\"\",'Comp Test for Darker than Std'!$B$50)","v":"BATCH 3 - Washed"},{"$f":"IF('Comp Test for Darker than Std'!$I$51=\"\",\"\",'Comp Test for Darker than Std'!$I$51)","v":"Compressive Strength"},{"$f":"IF('Comp Test for Darker than Std'!$I$52=\"\",\"\",'Comp Test for Darker than Std'!$I$52)","v":""},{"$f":"IF('Comp Test for Darker than Std'!$B$51=\"\",\"\",'Comp Test for Darker than Std'!$B$51)","v":"Sample"},{"$f":"IF('Comp Test for Darker than Std'!$B$53=\"\",\"\",'Comp Test for Darker than Std'!$B$53)","v":1}]
[105,{"$f":"IF('Comp Test for Darker than Std'!$C$54=\"\",\"\",'Comp Test for Darker than Std'!$C$54)","v":""},{"$f":"IF('Comp Test for Darker than Std'!$B$5=\"\",\"\",'Comp Test for Darker than Std'!$B$5)","v":"AASHTO T 71"},{"$f":"IF('Comp Test for Darker than Std'!$B$50=\"\",\"\",'Comp Test for Darker than Std'!$B$50)","v":"BATCH 3 - Washed"},{"$f":"IF('Comp Test for Darker than Std'!$C$51=\"\",\"\",'Comp Test for Darker than Std'!$C$51)","v":"Sample Number"},{"$f":"IF('Comp Test for Darker than Std'!$B$51=\"\",\"\",'Comp Test for Darker than Std'!$B$51)","v":"Sample"},{"$f":"IF('Comp Test for Darker than Std'!$B$54=\"\",\"\",'Comp Test for Darker than Std'!$B$54)","v":2}]
[106,{"$f":"IF('Comp Test for Darker than Std'!$D$54=\"\",\"\",'Comp Test for Darker than Std'!$D$54)","v":""},{"$f":"IF('Comp Test for Darker than Std'!$B$5=\"\",\"\",'Comp Test for Darker than Std'!$B$5)","v":"AASHTO T 71"},{"$f":"IF('Comp Test for Darker than Std'!$B$50=\"\",\"\",'Comp Test for Darker than Std'!$B$50)","v":"BATCH 3 - Washed"},{"$f":"IF('Comp Test for Darker than Std'!$D$51=\"\",\"\",'Comp Test for Darker than Std'!$D$51)","v":"Age"},{"$f":"IF('Comp Test for Darker than Std'!$B$51=\"\",\"\",'Comp Test for Darker than Std'!$B$51)","v":"Sample"},{"$f":"IF('Comp Test for Darker than Std'!$B$54=\"\",\"\",'Comp Test for Darker than Std'!$B$54)","v":2}]
[107,{"$f":"IF('Comp Test for Darker than Std'!$E$54=\"\",\"\",'Comp Test for Darker than Std'!$E$54)","v":""},{"$f":"IF('Comp Test for Darker than Std'!$B$5=\"\",\"\",'Comp Test for Darker than Std'!$B$5)","v":"AASHTO T 71"},{"$f":"IF('Comp Test for Darker than Std'!$B$50=\"\",\"\",'Comp Test for Darker than Std'!$B$50)","v":"BATCH 3 - Washed"},{"$f":"IF('Comp Test for Darker than Std'!$E$51=\"\",\"\",'Comp Test for Darker than Std'!$E$51)","v":"Length"},{"$f":"IF('Comp Test for Darker than Std'!$E$52=\"\",\"\",'Comp Test for Darker than Std'!$E$52)","v":""},{"$f":"IF('Comp Test for Darker than Std'!$B$51=\"\",\"\",'Comp Test for Darker than Std'!$B$51)","v":"Sample"},{"$f":"IF('Comp Test for Darker than Std'!$B$54=\"\",\"\",'Comp Test for Darker than Std'!$B$54)","v":2}]
[108,{"$f":"IF('Comp Test for Darker than Std'!$F$54=\"\",\"\",'Comp Test for Darker than Std'!$F$54)","v":""},{"$f":"IF('Comp Test for Darker than Std'!$B$5=\"\",\"\",'Comp Test for Darker than Std'!$B$5)","v":"AASHTO T 71"},{"$f":"IF('Comp Test for Darker than Std'!$B$50=\"\",\"\",'Comp Test for Darker than Std'!$B$50)","v":"BATCH 3 - Washed"},{"$f":"IF('Comp Test for Darker than Std'!$F$51=\"\",\"\",'Comp Test for Darker than Std'!$F$51)","v":"Width"},{"$f":"IF('Comp Test for Darker than Std'!$F$52=\"\",\"\",'Comp Test for Darker than Std'!$F$52)","v":""},{"$f":"IF('Comp Test for Darker than Std'!$B$51=\"\",\"\",'Comp Test for Darker than Std'!$B$51)","v":"Sample"},{"$f":"IF('Comp Test for Darker than Std'!$B$54=\"\",\"\",'Comp Test for Darker than Std'!$B$54)","v":2}]
[109,{"$f":"IF('Comp Test for Darker than Std'!$G$54=\"\",\"\",'Comp Test for Darker than Std'!$G$54)","v":0},{"$f":"IF('Comp Test for Darker than Std'!$B$5=\"\",\"\",'Comp Test for Darker than Std'!$B$5)","v":"AASHTO T 71"},{"$f":"IF('Comp Test for Darker than Std'!$B$50=\"\",\"\",'Comp Test for Darker than Std'!$B$50)","v":"BATCH 3 - Washed"},{"$f":"IF('Comp Test for Darker than Std'!$G$51=\"\",\"\",'Comp Test for Darker than Std'!$G$51)","v":"Area"},{"$f":"IF('Comp Test for Darker than Std'!$G$52=\"\",\"\",'Comp Test for Darker than Std'!$G$52)","v":""},{"$f":"IF('Comp Test for Darker than Std'!$B$51=\"\",\"\",'Comp Test for Darker than Std'!$B$51)","v":"Sample"},{"$f":"IF('Comp Test for Darker than Std'!$B$54=\"\",\"\",'Comp Test for Darker than Std'!$B$54)","v":2}]
[110,{"$f":"IF('Comp Test for Darker than Std'!$H$54=\"\",\"\",'Comp Test for Darker than Std'!$H$54)","v":""},{"$f":"IF('Comp Test for Darker than Std'!$B$5=\"\",\"\",'Comp Test for Darker than Std'!$B$5)","v":"AASHTO T 71"},{"$f":"IF('Comp Test for Darker than Std'!$B$50=\"\",\"\",'Comp Test for Darker than Std'!$B$50)","v":"BATCH 3 - Washed"},{"$f":"IF('Comp Test for Darker than Std'!$H$51=\"\",\"\",'Comp Test for Darker than Std'!$H$51)","v":"Load"},{"$f":"IF('Comp Test for Darker than Std'!$H$52=\"\",\"\",'Comp Test for Darker than Std'!$H$52)","v":""},{"$f":"IF('Comp Test for Darker than Std'!$B$51=\"\",\"\",'Comp Test for Darker than Std'!$B$51)","v":"Sample"},{"$f":"IF('Comp Test for Darker than Std'!$B$54=\"\",\"\",'Comp Test for Darker than Std'!$B$54)","v":2}]
[111,{"$f":"IF('Comp Test for Darker than Std'!$I$54=\"\",\"\",'Comp Test for Darker than Std'!$I$54)","v":0},{"$f":"IF('Comp Test for Darker than Std'!$B$5=\"\",\"\",'Comp Test for Darker than Std'!$B$5)","v":"AASHTO T 71"},{"$f":"IF('Comp Test for Darker than Std'!$B$50=\"\",\"\",'Comp Test for Darker than Std'!$B$50)","v":"BATCH 3 - Washed"},{"$f":"IF('Comp Test for Darker than Std'!$I$51=\"\",\"\",'Comp Test for Darker than Std'!$I$51)","v":"Compressive Strength"},{"$f":"IF('Comp Test for Darker than Std'!$I$52=\"\",\"\",'Comp Test for Darker than Std'!$I$52)","v":""},{"$f":"IF('Comp Test for Darker than Std'!$B$51=\"\",\"\",'Comp Test for Darker than Std'!$B$51)","v":"Sample"},{"$f":"IF('Comp Test for Darker than Std'!$B$54=\"\",\"\",'Comp Test for Darker than Std'!$B$54)","v":2}]
[112,{"$f":"IF('Comp Test for Darker than Std'!$C$55=\"\",\"\",'Comp Test for Darker than Std'!$C$55)","v":""},{"$f":"IF('Comp Test for Darker than Std'!$B$5=\"\",\"\",'Comp Test for Darker than Std'!$B$5)","v":"AASHTO T 71"},{"$f":"IF('Comp Test for Darker than Std'!$B$50=\"\",\"\",'Comp Test for Darker than Std'!$B$50)","v":"BATCH 3 - Washed"},{"$f":"IF('Comp Test for Darker than Std'!$C$51=\"\",\"\",'Comp Test for Darker than Std'!$C$51)","v":"Sample Number"},{"$f":"IF('Comp Test for Darker than Std'!$B$51=\"\",\"\",'Comp Test for Darker than Std'!$B$51)","v":"Sample"},{"$f":"IF('Comp Test for Darker than Std'!$B$55=\"\",\"\",'Comp Test for Darker than Std'!$B$55)","v":3}]
[113,{"$f":"IF('Comp Test for Darker than Std'!$D$55=\"\",\"\",'Comp Test for Darker than Std'!$D$55)","v":""},{"$f":"IF('Comp Test for Darker than Std'!$B$5=\"\",\"\",'Comp Test for Darker than Std'!$B$5)","v":"AASHTO T 71"},{"$f":"IF('Comp Test for Darker than Std'!$B$50=\"\",\"\",'Comp Test for Darker than Std'!$B$50)","v":"BATCH 3 - Washed"},{"$f":"IF('Comp Test for Darker than Std'!$D$51=\"\",\"\",'Comp Test for Darker than Std'!$D$51)","v":"Age"},{"$f":"IF('Comp Test for Darker than Std'!$B$51=\"\",\"\",'Comp Test for Darker than Std'!$B$51)","v":"Sample"},{"$f":"IF('Comp Test for Darker than Std'!$B$55=\"\",\"\",'Comp Test for Darker than Std'!$B$55)","v":3}]
[114,{"$f":"IF('Comp Test for Darker than Std'!$E$55=\"\",\"\",'Comp Test for Darker than Std'!$E$55)","v":""},{"$f":"IF('Comp Test for Darker than Std'!$B$5=\"\",\"\",'Comp Test for Darker than Std'!$B$5)","v":"AASHTO T 71"},{"$f":"IF('Comp Test for Darker than Std'!$B$50=\"\",\"\",'Comp Test for Darker than Std'!$B$50)","v":"BATCH 3 - Washed"},{"$f":"IF('Comp Test for Darker than Std'!$E$51=\"\",\"\",'Comp Test for Darker than Std'!$E$51)","v":"Length"},{"$f":"IF('Comp Test for Darker than Std'!$E$52=\"\",\"\",'Comp Test for Darker than Std'!$E$52)","v":""},{"$f":"IF('Comp Test for Darker than Std'!$B$51=\"\",\"\",'Comp Test for Darker than Std'!$B$51)","v":"Sample"},{"$f":"IF('Comp Test for Darker than Std'!$B$55=\"\",\"\",'Comp Test for Darker than Std'!$B$55)","v":3}]
[115,{"$f":"IF('Comp Test for Darker than Std'!$F$55=\"\",\"\",'Comp Test for Darker than Std'!$F$55)","v":""},{"$f":"IF('Comp Test for Darker than Std'!$B$5=\"\",\"\",'Comp Test for Darker than Std'!$B$5)","v":"AASHTO T 71"},{"$f":"IF('Comp Test for Darker than Std'!$B$50=\"\",\"\",'Comp Test for Darker than Std'!$B$50)","v":"BATCH 3 - Washed"},{"$f":"IF('Comp Test for Darker than Std'!$F$51=\"\",\"\",'Comp Test for Darker than Std'!$F$51)","v":"Width"},{"$f":"IF('Comp Test for Darker than Std'!$F$52=\"\",\"\",'Comp Test for Darker than Std'!$F$52)","v":""},{"$f":"IF('Comp Test for Darker than Std'!$B$51=\"\",\"\",'Comp Test for Darker than Std'!$B$51)","v":"Sample"},{"$f":"IF('Comp Test for Darker than Std'!$B$55=\"\",\"\",'Comp Test for Darker than Std'!$B$55)","v":3}]
[116,{"$f":"IF('Comp Test for Darker than Std'!$G$55=\"\",\"\",'Comp Test for Darker than Std'!$G$55)","v":0},{"$f":"IF('Comp Test for Darker than Std'!$B$5=\"\",\"\",'Comp Test for Darker than Std'!$B$5)","v":"AASHTO T 71"},{"$f":"IF('Comp Test for Darker than Std'!$B$50=\"\",\"\",'Comp Test for Darker than Std'!$B$50)","v":"BATCH 3 - Washed"},{"$f":"IF('Comp Test for Darker than Std'!$G$51=\"\",\"\",'Comp Test for Darker than Std'!$G$51)","v":"Area"},{"$f":"IF('Comp Test for Darker than Std'!$G$52=\"\",\"\",'Comp Test for Darker than Std'!$G$52)","v":""},{"$f":"IF('Comp Test for Darker than Std'!$B$51=\"\",\"\",'Comp Test for Darker than Std'!$B$51)","v":"Sample"},{"$f":"IF('Comp Test for Darker than Std'!$B$55=\"\",\"\",'Comp Test for Darker than Std'!$B$55)","v":3}]
[117,{"$f":"IF('Comp Test for Darker than Std'!$H$55=\"\",\"\",'Comp Test for Darker than Std'!$H$55)","v":""},{"$f":"IF('Comp Test for Darker than Std'!$B$5=\"\",\"\",'Comp Test for Darker than Std'!$B$5)","v":"AASHTO T 71"},{"$f":"IF('Comp Test for Darker than Std'!$B$50=\"\",\"\",'Comp Test for Darker than Std'!$B$50)","v":"BATCH 3 - Washed"},{"$f":"IF('Comp Test for Darker than Std'!$H$51=\"\",\"\",'Comp Test for Darker than Std'!$H$51)","v":"Load"},{"$f":"IF('Comp Test for Darker than Std'!$H$52=\"\",\"\",'Comp Test for Darker than Std'!$H$52)","v":""},{"$f":"IF('Comp Test for Darker than Std'!$B$51=\"\",\"\",'Comp Test for Darker than Std'!$B$51)","v":"Sample"},{"$f":"IF('Comp Test for Darker than Std'!$B$55=\"\",\"\",'Comp Test for Darker than Std'!$B$55)","v":3}]
[118,{"$f":"IF('Comp Test for Darker than Std'!$I$55=\"\",\"\",'Comp Test for Darker than Std'!$I$55)","v":0},{"$f":"IF('Comp Test for Darker than Std'!$B$5=\"\",\"\",'Comp Test for Darker than Std'!$B$5)","v":"AASHTO T 71"},{"$f":"IF('Comp Test for Darker than Std'!$B$50=\"\",\"\",'Comp Test for Darker than Std'!$B$50)","v":"BATCH 3 - Washed"},{"$f":"IF('Comp Test for Darker than Std'!$I$51=\"\",\"\",'Comp Test for Darker than Std'!$I$51)","v":"Compressive Strength"},{"$f":"IF('Comp Test for Darker than Std'!$I$52=\"\",\"\",'Comp Test for Darker than Std'!$I$52)","v":""},{"$f":"IF('Comp Test for Darker than Std'!$B$51=\"\",\"\",'Comp Test for Darker than Std'!$B$51)","v":"Sample"},{"$f":"IF('Comp Test for Darker than Std'!$B$55=\"\",\"\",'Comp Test for Darker than Std'!$B$55)","v":3}]
[119,{"$f":"IF('Comp Test for Darker than Std'!$I$56=\"\",\"\",'Comp Test for Darker than Std'!$I$56)","v":0},{"$f":"IF('Comp Test for Darker than Std'!$B$5=\"\",\"\",'Comp Test for Darker than Std'!$B$5)","v":"AASHTO T 71"},{"$f":"IF('Comp Test for Darker than Std'!$B$50=\"\",\"\",'Comp Test for Darker than Std'!$B$50)","v":"BATCH 3 - Washed"},{"$f":"IF('Comp Test for Darker than Std'!$I$51=\"\",\"\",'Comp Test for Darker than Std'!$I$51)","v":"Compressive Strength"},{"$f":"IF('Comp Test for Darker than Std'!$I$52=\"\",\"\",'Comp Test for Darker than Std'!$I$52)","v":""},{"$f":"IF('Comp Test for Darker than Std'!$G$56=\"\",\"\",'Comp Test for Darker than Std'!$G$56)","v":"Average Strength:"}]
[120,{"$f":"IF('Comp Test for Darker than Std'!$C$60=\"\",\"\",'Comp Test for Darker than Std'!$C$60)","v":""},{"$f":"IF('Comp Test for Darker than Std'!$B$5=\"\",\"\",'Comp Test for Darker than Std'!$B$5)","v":"AASHTO T 71"},{"$f":"IF('Comp Test for Darker than Std'!$B$57=\"\",\"\",'Comp Test for Darker than Std'!$B$57)","v":"BATCH 3 -  Unwashed"},{"$f":"IF('Comp Test for Darker than Std'!$C$58=\"\",\"\",'Comp Test for Darker than Std'!$C$58)","v":"Sample Number"},{"$f":"IF('Comp Test for Darker than Std'!$B$58=\"\",\"\",'Comp Test for Darker than Std'!$B$58)","v":"Sample"},{"$f":"IF('Comp Test for Darker than Std'!$B$60=\"\",\"\",'Comp Test for Darker than Std'!$B$60)","v":1}]
[121,{"$f":"IF('Comp Test for Darker than Std'!$C$60=\"\",\"\",'Comp Test for Darker than Std'!$C$60)","v":""},{"$f":"IF('Comp Test for Darker than Std'!$B$5=\"\",\"\",'Comp Test for Darker than Std'!$B$5)","v":"AASHTO T 71"},{"$f":"IF('Comp Test for Darker than Std'!$B$57=\"\",\"\",'Comp Test for Darker than Std'!$B$57)","v":"BATCH 3 -  Unwashed"},{"$f":"IF('Comp Test for Darker than Std'!$C$58=\"\",\"\",'Comp Test for Darker than Std'!$C$58)","v":"Sample Number"},{"$f":"IF('Comp Test for Darker than Std'!$B$58=\"\",\"\",'Comp Test for Darker than Std'!$B$58)","v":"Sample"},{"$f":"IF('Comp Test for Darker than Std'!$B$60=\"\",\"\",'Comp Test for Darker than Std'!$B$60)","v":1}]
[122,{"$f":"IF('Comp Test for Darker than Std'!$D$60=\"\",\"\",'Comp Test for Darker than Std'!$D$60)","v":""},{"$f":"IF('Comp Test for Darker than Std'!$B$5=\"\",\"\",'Comp Test for Darker than Std'!$B$5)","v":"AASHTO T 71"},{"$f":"IF('Comp Test for Darker than Std'!$B$57=\"\",\"\",'Comp Test for Darker than Std'!$B$57)","v":"BATCH 3 -  Unwashed"},{"$f":"IF('Comp Test for Darker than Std'!$D$58=\"\",\"\",'Comp Test for Darker than Std'!$D$58)","v":"Age"},{"$f":"IF('Comp Test for Darker than Std'!$B$58=\"\",\"\",'Comp Test for Darker than Std'!$B$58)","v":"Sample"},{"$f":"IF('Comp Test for Darker than Std'!$B$60=\"\",\"\",'Comp Test for Darker than Std'!$B$60)","v":1}]
[123,{"$f":"IF('Comp Test for Darker than Std'!$E$60=\"\",\"\",'Comp Test for Darker than Std'!$E$60)","v":""},{"$f":"IF('Comp Test for Darker than Std'!$B$5=\"\",\"\",'Comp Test for Darker than Std'!$B$5)","v":"AASHTO T 71"},{"$f":"IF('Comp Test for Darker than Std'!$B$57=\"\",\"\",'Comp Test for Darker than Std'!$B$57)","v":"BATCH 3 -  Unwashed"},{"$f":"IF('Comp Test for Darker than Std'!$E$58=\"\",\"\",'Comp Test for Darker than Std'!$E$58)","v":"Length"},{"$f":"IF('Comp Test for Darker than Std'!$E$59=\"\",\"\",'Comp Test for Darker than Std'!$E$59)","v":""},{"$f":"IF('Comp Test for Darker than Std'!$B$58=\"\",\"\",'Comp Test for Darker than Std'!$B$58)","v":"Sample"},{"$f":"IF('Comp Test for Darker than Std'!$B$60=\"\",\"\",'Comp Test for Darker than Std'!$B$60)","v":1}]
[124,{"$f":"IF('Comp Test for Darker than Std'!$F$60=\"\",\"\",'Comp Test for Darker than Std'!$F$60)","v":""},{"$f":"IF('Comp Test for Darker than Std'!$B$5=\"\",\"\",'Comp Test for Darker than Std'!$B$5)","v":"AASHTO T 71"},{"$f":"IF('Comp Test for Darker than Std'!$B$57=\"\",\"\",'Comp Test for Darker than Std'!$B$57)","v":"BATCH 3 -  Unwashed"},{"$f":"IF('Comp Test for Darker than Std'!$F$58=\"\",\"\",'Comp Test for Darker than Std'!$F$58)","v":"Width"},{"$f":"IF('Comp Test for Darker than Std'!$F$59=\"\",\"\",'Comp Test for Darker than Std'!$F$59)","v":""},{"$f":"IF('Comp Test for Darker than Std'!$B$58=\"\",\"\",'Comp Test for Darker than Std'!$B$58)","v":"Sample"},{"$f":"IF('Comp Test for Darker than Std'!$B$60=\"\",\"\",'Comp Test for Darker than Std'!$B$60)","v":1}]
[125,{"$f":"IF('Comp Test for Darker than Std'!$G$60=\"\",\"\",'Comp Test for Darker than Std'!$G$60)","v":0},{"$f":"IF('Comp Test for Darker than Std'!$B$5=\"\",\"\",'Comp Test for Darker than Std'!$B$5)","v":"AASHTO T 71"},{"$f":"IF('Comp Test for Darker than Std'!$B$57=\"\",\"\",'Comp Test for Darker than Std'!$B$57)","v":"BATCH 3 -  Unwashed"},{"$f":"IF('Comp Test for Darker than Std'!$G$58=\"\",\"\",'Comp Test for Darker than Std'!$G$58)","v":"Area"},{"$f":"IF('Comp Test for Darker than Std'!$G$59=\"\",\"\",'Comp Test for Darker than Std'!$G$59)","v":""},{"$f":"IF('Comp Test for Darker than Std'!$B$58=\"\",\"\",'Comp Test for Darker than Std'!$B$58)","v":"Sample"},{"$f":"IF('Comp Test for Darker than Std'!$B$60=\"\",\"\",'Comp Test for Darker than Std'!$B$60)","v":1}]
[126,{"$f":"IF('Comp Test for Darker than Std'!$H$60=\"\",\"\",'Comp Test for Darker than Std'!$H$60)","v":""},{"$f":"IF('Comp Test for Darker than Std'!$B$5=\"\",\"\",'Comp Test for Darker than Std'!$B$5)","v":"AASHTO T 71"},{"$f":"IF('Comp Test for Darker than Std'!$B$57=\"\",\"\",'Comp Test for Darker than Std'!$B$57)","v":"BATCH 3 -  Unwashed"},{"$f":"IF('Comp Test for Darker than Std'!$H$58=\"\",\"\",'Comp Test for Darker than Std'!$H$58)","v":"Load"},{"$f":"IF('Comp Test for Darker than Std'!$H$59=\"\",\"\",'Comp Test for Darker than Std'!$H$59)","v":""},{"$f":"IF('Comp Test for Darker than Std'!$B$58=\"\",\"\",'Comp Test for Darker than Std'!$B$58)","v":"Sample"},{"$f":"IF('Comp Test for Darker than Std'!$B$60=\"\",\"\",'Comp Test for Darker than Std'!$B$60)","v":1}]
[127,{"$f":"IF('Comp Test for Darker than Std'!$I$60=\"\",\"\",'Comp Test for Darker than Std'!$I$60)","v":0},{"$f":"IF('Comp Test for Darker than Std'!$B$5=\"\",\"\",'Comp Test for Darker than Std'!$B$5)","v":"AASHTO T 71"},{"$f":"IF('Comp Test for Darker than Std'!$B$57=\"\",\"\",'Comp Test for Darker than Std'!$B$57)","v":"BATCH 3 -  Unwashed"},{"$f":"IF('Comp Test for Darker than Std'!$I$58=\"\",\"\",'Comp Test for Darker than Std'!$I$58)","v":"Compressive Strength"},{"$f":"IF('Comp Test for Darker than Std'!$I$59=\"\",\"\",'Comp Test for Darker than Std'!$I$59)","v":""},{"$f":"IF('Comp Test for Darker than Std'!$B$58=\"\",\"\",'Comp Test for Darker than Std'!$B$58)","v":"Sample"},{"$f":"IF('Comp Test for Darker than Std'!$B$60=\"\",\"\",'Comp Test for Darker than Std'!$B$60)","v":1}]
[128,{"$f":"IF('Comp Test for Darker than Std'!$C$61=\"\",\"\",'Comp Test for Darker than Std'!$C$61)","v":""},{"$f":"IF('Comp Test for Darker than Std'!$B$5=\"\",\"\",'Comp Test for Darker than Std'!$B$5)","v":"AASHTO T 71"},{"$f":"IF('Comp Test for Darker than Std'!$B$57=\"\",\"\",'Comp Test for Darker than Std'!$B$57)","v":"BATCH 3 -  Unwashed"},{"$f":"IF('Comp Test for Darker than Std'!$C$58=\"\",\"\",'Comp Test for Darker than Std'!$C$58)","v":"Sample Number"},{"$f":"IF('Comp Test for Darker than Std'!$B$58=\"\",\"\",'Comp Test for Darker than Std'!$B$58)","v":"Sample"},{"$f":"IF('Comp Test for Darker than Std'!$B$61=\"\",\"\",'Comp Test for Darker than Std'!$B$61)","v":2}]
[129,{"$f":"IF('Comp Test for Darker than Std'!$D$61=\"\",\"\",'Comp Test for Darker than Std'!$D$61)","v":""},{"$f":"IF('Comp Test for Darker than Std'!$B$5=\"\",\"\",'Comp Test for Darker than Std'!$B$5)","v":"AASHTO T 71"},{"$f":"IF('Comp Test for Darker than Std'!$B$57=\"\",\"\",'Comp Test for Darker than Std'!$B$57)","v":"BATCH 3 -  Unwashed"},{"$f":"IF('Comp Test for Darker than Std'!$D$58=\"\",\"\",'Comp Test for Darker than Std'!$D$58)","v":"Age"},{"$f":"IF('Comp Test for Darker than Std'!$B$58=\"\",\"\",'Comp Test for Darker than Std'!$B$58)","v":"Sample"},{"$f":"IF('Comp Test for Darker than Std'!$B$61=\"\",\"\",'Comp Test for Darker than Std'!$B$61)","v":2}]
[130,{"$f":"IF('Comp Test for Darker than Std'!$E$61=\"\",\"\",'Comp Test for Darker than Std'!$E$61)","v":""},{"$f":"IF('Comp Test for Darker than Std'!$B$5=\"\",\"\",'Comp Test for Darker than Std'!$B$5)","v":"AASHTO T 71"},{"$f":"IF('Comp Test for Darker than Std'!$B$57=\"\",\"\",'Comp Test for Darker than Std'!$B$57)","v":"BATCH 3 -  Unwashed"},{"$f":"IF('Comp Test for Darker than Std'!$E$58=\"\",\"\",'Comp Test for Darker than Std'!$E$58)","v":"Length"},{"$f":"IF('Comp Test for Darker than Std'!$E$59=\"\",\"\",'Comp Test for Darker than Std'!$E$59)","v":""},{"$f":"IF('Comp Test for Darker than Std'!$B$58=\"\",\"\",'Comp Test for Darker than Std'!$B$58)","v":"Sample"},{"$f":"IF('Comp Test for Darker than Std'!$B$61=\"\",\"\",'Comp Test for Darker than Std'!$B$61)","v":2}]
[131,{"$f":"IF('Comp Test for Darker than Std'!$F$61=\"\",\"\",'Comp Test for Darker than Std'!$F$61)","v":""},{"$f":"IF('Comp Test for Darker than Std'!$B$5=\"\",\"\",'Comp Test for Darker than Std'!$B$5)","v":"AASHTO T 71"},{"$f":"IF('Comp Test for Darker than Std'!$B$57=\"\",\"\",'Comp Test for Darker than Std'!$B$57)","v":"BATCH 3 -  Unwashed"},{"$f":"IF('Comp Test for Darker than Std'!$F$58=\"\",\"\",'Comp Test for Darker than Std'!$F$58)","v":"Width"},{"$f":"IF('Comp Test for Darker than Std'!$F$59=\"\",\"\",'Comp Test for Darker than Std'!$F$59)","v":""},{"$f":"IF('Comp Test for Darker than Std'!$B$58=\"\",\"\",'Comp Test for Darker than Std'!$B$58)","v":"Sample"},{"$f":"IF('Comp Test for Darker than Std'!$B$61=\"\",\"\",'Comp Test for Darker than Std'!$B$61)","v":2}]
[132,{"$f":"IF('Comp Test for Darker than Std'!$G$61=\"\",\"\",'Comp Test for Darker than Std'!$G$61)","v":0},{"$f":"IF('Comp Test for Darker than Std'!$B$5=\"\",\"\",'Comp Test for Darker than Std'!$B$5)","v":"AASHTO T 71"},{"$f":"IF('Comp Test for Darker than Std'!$B$57=\"\",\"\",'Comp Test for Darker than Std'!$B$57)","v":"BATCH 3 -  Unwashed"},{"$f":"IF('Comp Test for Darker than Std'!$G$58=\"\",\"\",'Comp Test for Darker than Std'!$G$58)","v":"Area"},{"$f":"IF('Comp Test for Darker than Std'!$G$59=\"\",\"\",'Comp Test for Darker than Std'!$G$59)","v":""},{"$f":"IF('Comp Test for Darker than Std'!$B$58=\"\",\"\",'Comp Test for Darker than Std'!$B$58)","v":"Sample"},{"$f":"IF('Comp Test for Darker than Std'!$B$61=\"\",\"\",'Comp Test for Darker than Std'!$B$61)","v":2}]
[133,{"$f":"IF('Comp Test for Darker than Std'!$H$61=\"\",\"\",'Comp Test for Darker than Std'!$H$61)","v":""},{"$f":"IF('Comp Test for Darker than Std'!$B$5=\"\",\"\",'Comp Test for Darker than Std'!$B$5)","v":"AASHTO T 71"},{"$f":"IF('Comp Test for Darker than Std'!$B$57=\"\",\"\",'Comp Test for Darker than Std'!$B$57)","v":"BATCH 3 -  Unwashed"},{"$f":"IF('Comp Test for Darker than Std'!$H$58=\"\",\"\",'Comp Test for Darker than Std'!$H$58)","v":"Load"},{"$f":"IF('Comp Test for Darker than Std'!$H$59=\"\",\"\",'Comp Test for Darker than Std'!$H$59)","v":""},{"$f":"IF('Comp Test for Darker than Std'!$B$58=\"\",\"\",'Comp Test for Darker than Std'!$B$58)","v":"Sample"},{"$f":"IF('Comp Test for Darker than Std'!$B$61=\"\",\"\",'Comp Test for Darker than Std'!$B$61)","v":2}]
[134,{"$f":"IF('Comp Test for Darker than Std'!$I$61=\"\",\"\",'Comp Test for Darker than Std'!$I$61)","v":0},{"$f":"IF('Comp Test for Darker than Std'!$B$5=\"\",\"\",'Comp Test for Darker than Std'!$B$5)","v":"AASHTO T 71"},{"$f":"IF('Comp Test for Darker than Std'!$B$57=\"\",\"\",'Comp Test for Darker than Std'!$B$57)","v":"BATCH 3 -  Unwashed"},{"$f":"IF('Comp Test for Darker than Std'!$I$58=\"\",\"\",'Comp Test for Darker than Std'!$I$58)","v":"Compressive Strength"},{"$f":"IF('Comp Test for Darker than Std'!$I$59=\"\",\"\",'Comp Test for Darker than Std'!$I$59)","v":""},{"$f":"IF('Comp Test for Darker than Std'!$B$58=\"\",\"\",'Comp Test for Darker than Std'!$B$58)","v":"Sample"},{"$f":"IF('Comp Test for Darker than Std'!$B$61=\"\",\"\",'Comp Test for Darker than Std'!$B$61)","v":2}]
[135,{"$f":"IF('Comp Test for Darker than Std'!$C$62=\"\",\"\",'Comp Test for Darker than Std'!$C$62)","v":""},{"$f":"IF('Comp Test for Darker than Std'!$B$5=\"\",\"\",'Comp Test for Darker than Std'!$B$5)","v":"AASHTO T 71"},{"$f":"IF('Comp Test for Darker than Std'!$B$57=\"\",\"\",'Comp Test for Darker than Std'!$B$57)","v":"BATCH 3 -  Unwashed"},{"$f":"IF('Comp Test for Darker than Std'!$C$58=\"\",\"\",'Comp Test for Darker than Std'!$C$58)","v":"Sample Number"},{"$f":"IF('Comp Test for Darker than Std'!$B$58=\"\",\"\",'Comp Test for Darker than Std'!$B$58)","v":"Sample"},{"$f":"IF('Comp Test for Darker than Std'!$B$62=\"\",\"\",'Comp Test for Darker than Std'!$B$62)","v":3}]
[136,{"$f":"IF('Comp Test for Darker than Std'!$D$62=\"\",\"\",'Comp Test for Darker than Std'!$D$62)","v":""},{"$f":"IF('Comp Test for Darker than Std'!$B$5=\"\",\"\",'Comp Test for Darker than Std'!$B$5)","v":"AASHTO T 71"},{"$f":"IF('Comp Test for Darker than Std'!$B$57=\"\",\"\",'Comp Test for Darker than Std'!$B$57)","v":"BATCH 3 -  Unwashed"},{"$f":"IF('Comp Test for Darker than Std'!$D$58=\"\",\"\",'Comp Test for Darker than Std'!$D$58)","v":"Age"},{"$f":"IF('Comp Test for Darker than Std'!$B$58=\"\",\"\",'Comp Test for Darker than Std'!$B$58)","v":"Sample"},{"$f":"IF('Comp Test for Darker than Std'!$B$62=\"\",\"\",'Comp Test for Darker than Std'!$B$62)","v":3}]
[137,{"$f":"IF('Comp Test for Darker than Std'!$E$62=\"\",\"\",'Comp Test for Darker than Std'!$E$62)","v":""},{"$f":"IF('Comp Test for Darker than Std'!$B$5=\"\",\"\",'Comp Test for Darker than Std'!$B$5)","v":"AASHTO T 71"},{"$f":"IF('Comp Test for Darker than Std'!$B$57=\"\",\"\",'Comp Test for Darker than Std'!$B$57)","v":"BATCH 3 -  Unwashed"},{"$f":"IF('Comp Test for Darker than Std'!$E$58=\"\",\"\",'Comp Test for Darker than Std'!$E$58)","v":"Length"},{"$f":"IF('Comp Test for Darker than Std'!$E$59=\"\",\"\",'Comp Test for Darker than Std'!$E$59)","v":""},{"$f":"IF('Comp Test for Darker than Std'!$B$58=\"\",\"\",'Comp Test for Darker than Std'!$B$58)","v":"Sample"},{"$f":"IF('Comp Test for Darker than Std'!$B$62=\"\",\"\",'Comp Test for Darker than Std'!$B$62)","v":3}]
[138,{"$f":"IF('Comp Test for Darker than Std'!$F$62=\"\",\"\",'Comp Test for Darker than Std'!$F$62)","v":""},{"$f":"IF('Comp Test for Darker than Std'!$B$5=\"\",\"\",'Comp Test for Darker than Std'!$B$5)","v":"AASHTO T 71"},{"$f":"IF('Comp Test for Darker than Std'!$B$57=\"\",\"\",'Comp Test for Darker than Std'!$B$57)","v":"BATCH 3 -  Unwashed"},{"$f":"IF('Comp Test for Darker than Std'!$F$58=\"\",\"\",'Comp Test for Darker than Std'!$F$58)","v":"Width"},{"$f":"IF('Comp Test for Darker than Std'!$F$59=\"\",\"\",'Comp Test for Darker than Std'!$F$59)","v":""},{"$f":"IF('Comp Test for Darker than Std'!$B$58=\"\",\"\",'Comp Test for Darker than Std'!$B$58)","v":"Sample"},{"$f":"IF('Comp Test for Darker than Std'!$B$62=\"\",\"\",'Comp Test for Darker than Std'!$B$62)","v":3}]
[139,{"$f":"IF('Comp Test for Darker than Std'!$G$62=\"\",\"\",'Comp Test for Darker than Std'!$G$62)","v":0},{"$f":"IF('Comp Test for Darker than Std'!$B$5=\"\",\"\",'Comp Test for Darker than Std'!$B$5)","v":"AASHTO T 71"},{"$f":"IF('Comp Test for Darker than Std'!$B$57=\"\",\"\",'Comp Test for Darker than Std'!$B$57)","v":"BATCH 3 -  Unwashed"},{"$f":"IF('Comp Test for Darker than Std'!$G$58=\"\",\"\",'Comp Test for Darker than Std'!$G$58)","v":"Area"},{"$f":"IF('Comp Test for Darker than Std'!$G$59=\"\",\"\",'Comp Test for Darker than Std'!$G$59)","v":""},{"$f":"IF('Comp Test for Darker than Std'!$B$58=\"\",\"\",'Comp Test for Darker than Std'!$B$58)","v":"Sample"},{"$f":"IF('Comp Test for Darker than Std'!$B$62=\"\",\"\",'Comp Test for Darker than Std'!$B$62)","v":3}]
[140,{"$f":"IF('Comp Test for Darker than Std'!$H$62=\"\",\"\",'Comp Test for Darker than Std'!$H$62)","v":""},{"$f":"IF('Comp Test for Darker than Std'!$B$5=\"\",\"\",'Comp Test for Darker than Std'!$B$5)","v":"AASHTO T 71"},{"$f":"IF('Comp Test for Darker than Std'!$B$57=\"\",\"\",'Comp Test for Darker than Std'!$B$57)","v":"BATCH 3 -  Unwashed"},{"$f":"IF('Comp Test for Darker than Std'!$H$58=\"\",\"\",'Comp Test for Darker than Std'!$H$58)","v":"Load"},{"$f":"IF('Comp Test for Darker than Std'!$H$59=\"\",\"\",'Comp Test for Darker than Std'!$H$59)","v":""},{"$f":"IF('Comp Test for Darker than Std'!$B$58=\"\",\"\",'Comp Test for Darker than Std'!$B$58)","v":"Sample"},{"$f":"IF('Comp Test for Darker than Std'!$B$62=\"\",\"\",'Comp Test for Darker than Std'!$B$62)","v":3}]
[141,{"$f":"IF('Comp Test for Darker than Std'!$I$62=\"\",\"\",'Comp Test for Darker than Std'!$I$62)","v":0},{"$f":"IF('Comp Test for Darker than Std'!$B$5=\"\",\"\",'Comp Test for Darker than Std'!$B$5)","v":"AASHTO T 71"},{"$f":"IF('Comp Test for Darker than Std'!$B$57=\"\",\"\",'Comp Test for Darker than Std'!$B$57)","v":"BATCH 3 -  Unwashed"},{"$f":"IF('Comp Test for Darker than Std'!$I$58=\"\",\"\",'Comp Test for Darker than Std'!$I$58)","v":"Compressive Strength"},{"$f":"IF('Comp Test for Darker than Std'!$I$59=\"\",\"\",'Comp Test for Darker than Std'!$I$59)","v":""},{"$f":"IF('Comp Test for Darker than Std'!$B$58=\"\",\"\",'Comp Test for Darker than Std'!$B$58)","v":"Sample"},{"$f":"IF('Comp Test for Darker than Std'!$B$62=\"\",\"\",'Comp Test for Darker than Std'!$B$62)","v":3}]
[142,{"$f":"IF('Comp Test for Darker than Std'!$I$63=\"\",\"\",'Comp Test for Darker than Std'!$I$63)","v":0},{"$f":"IF('Comp Test for Darker than Std'!$B$5=\"\",\"\",'Comp Test for Darker than Std'!$B$5)","v":"AASHTO T 71"},{"$f":"IF('Comp Test for Darker than Std'!$B$57=\"\",\"\",'Comp Test for Darker than Std'!$B$57)","v":"BATCH 3 -  Unwashed"},{"$f":"IF('Comp Test for Darker than Std'!$I$58=\"\",\"\",'Comp Test for Darker than Std'!$I$58)","v":"Compressive Strength"},{"$f":"IF('Comp Test for Darker than Std'!$I$59=\"\",\"\",'Comp Test for Darker than Std'!$I$59)","v":""},{"$f":"IF('Comp Test for Darker than Std'!$G$63=\"\",\"\",'Comp Test for Darker than Std'!$G$63)","v":"Average Strength:"}]
[143,{"$f":"IF('Comp Test for Darker than Std'!$H$65=\"\",\"\",'Comp Test for Darker than Std'!$H$65)","v":0},{"$f":"IF('Comp Test for Darker than Std'!$B$5=\"\",\"\",'Comp Test for Darker than Std'!$B$5)","v":"AASHTO T 71"},{"$f":"IF('Comp Test for Darker than Std'!$G$65=\"\",\"\",'Comp Test for Darker than Std'!$G$65)","v":"Batch 1 - Ratio of unwashed strength to washed strength:"}]
[144,{"$f":"IF('Comp Test for Darker than Std'!$H$67=\"\",\"\",'Comp Test for Darker than Std'!$H$67)","v":0},{"$f":"IF('Comp Test for Darker than Std'!$B$5=\"\",\"\",'Comp Test for Darker than Std'!$B$5)","v":"AASHTO T 71"},{"$f":"IF('Comp Test for Darker than Std'!$G$67=\"\",\"\",'Comp Test for Darker than Std'!$G$67)","v":"Batch 2 - Ratio of unwashed strength to washed strength:"}]
[145,{"$f":"IF('Comp Test for Darker than Std'!$H$69=\"\",\"\",'Comp Test for Darker than Std'!$H$69)","v":0},{"$f":"IF('Comp Test for Darker than Std'!$B$5=\"\",\"\",'Comp Test for Darker than Std'!$B$5)","v":"AASHTO T 71"},{"$f":"IF('Comp Test for Darker than Std'!$G$69=\"\",\"\",'Comp Test for Darker than Std'!$G$69)","v":"Batch 3 - Ratio of unwashed strength to washed strength:"}]
[146,{"$f":"IF('Comp Test for Darker than Std'!$H$71=\"\",\"\",'Comp Test for Darker than Std'!$H$71)","v":0},{"$f":"IF('Comp Test for Darker than Std'!$B$5=\"\",\"\",'Comp Test for Darker than Std'!$B$5)","v":"AASHTO T 71"},{"$f":"IF('Comp Test for Darker than Std'!$G$71=\"\",\"\",'Comp Test for Darker than Std'!$G$71)","v":"Relative Strength (%)"}]
[147,{"$f":"IF(Impurities!$C$42=\"\",\"\",Impurities!$C$42)","v":""},"Sampled By ",{"$f":"IF(Impurities!$B$42=\"\",\"\",Impurities!$B$42)","v":"TX400"}]
[148,{"$f":"IF(Impurities!$F$42=\"\",\"\",Impurities!$F$42)","v":""},"Sampled  Date ",{"$f":"IF(Impurities!$B$42=\"\",\"\",Impurities!$B$42)","v":"TX400"}]